Workbook

Sheet Uitleg
A1: Zelfde reglement als voor een gewone Sudoku.
A2: De cijfers 1 tot 9
A3: aanpassen naar de letters A tot I
A4: A is dus 1
A5: B is dus 2 enz
A6: I is dus 9
A8: Oplossingen naar rechts verplaatsen(buiten het scherm)

Sheet Letters
M1: V | N1: K3:S11
M2: 1 | N2: K14:S22 | O2: =M2+25 -> 26 | P2: =LEFT(N26,1)&MID(N26,2,3)+12&":"&MID(N26,6,1)&MID(N26,7,3)+12 -> K314:S322 | Q2: =O2+25 -> 51 | R2: =LEFT(P26,1)&MID(P26,2,3)+12&":"&MID(P26,6,1)&MID(P26,7,3)+12 -> K614:S622 | S2: =Q2+25 -> 76 | T2: =LEFT(R26,1)&MID(R26,2,3)+12&":"&MID(R26,6,1)&MID(R26,7,3)+12 -> K914:S922 | U2: =S2+25 -> 101 | V2: =LEFT(T26,1)&MID(T26,2,4)+12&":"&MID(T26,7,1)&MID(T26,8,4)+12 -> K1214:S1222 | W2: =U2+25 -> 126 | X2: =LEFT(V26,1)&MID(V26,2,4)+12&":"&MID(V26,7,1)&MID(V26,8,4)+12 -> K1514:S1522 | Y2: =W2+25 -> 151 | Z2: =LEFT(X26,1)&MID(X26,2,4)+12&":"&MID(X26,7,1)&MID(X26,8,4)+12 -> K1814:S1822 | AA2: =Y2+25 -> 176 | AB2: =LEFT(Z26,1)&MID(Z26,2,4)+12&":"&MID(Z26,7,1)&MID(Z26,8,4)+12 -> K2114:S2122 | AC2: =AA2+25 -> 201 | AD2: =LEFT(AB26,1)&MID(AB26,2,4)+12&":"&MID(AB26,7,1)&MID(AB26,8,4)+12 -> K2414:S2422 | AE2: =AC2+25 -> 226 | AF2: =LEFT(AD26,1)&MID(AD26,2,4)+12&":"&MID(AD26,7,1)&MID(AD26,8,4)+12 -> K2714:S2722 | AG2: =AE2+25 -> 251 | AH2: =LEFT(AF26,1)&MID(AF26,2,4)+12&":"&MID(AF26,7,1)&MID(AF26,8,4)+12 -> K3014:S3022 | AI2: =AG2+25 -> 276 | AJ2: =LEFT(AH26,1)&MID(AH26,2,4)+12&":"&MID(AH26,7,1)&MID(AH26,8,4)+12 -> K3314:S3322 | AK2: =AI2+25 -> 301 | AL2: =LEFT(AJ26,1)&MID(AJ26,2,4)+12&":"&MID(AJ26,7,1)&MID(AJ26,8,4)+12 -> K3614:S3622 | AM2: =AK2+25 -> 326 | AN2: =LEFT(AL26,1)&MID(AL26,2,4)+12&":"&MID(AL26,7,1)&MID(AL26,8,4)+12 -> K3914:S3922 | AO2: =AM2+25 -> 351 | AP2: =LEFT(AN26,1)&MID(AN26,2,4)+12&":"&MID(AN26,7,1)&MID(AN26,8,4)+12 -> K4214:S4222 | AQ2: =AO2+25 -> 376 | AR2: =LEFT(AP26,1)&MID(AP26,2,4)+12&":"&MID(AP26,7,1)&MID(AP26,8,4)+12 -> K4514:S4522 | AS2: =AQ2+25 -> 401 | AT2: =LEFT(AR26,1)&MID(AR26,2,4)+12&":"&MID(AR26,7,1)&MID(AR26,8,4)+12 -> K4814:S4822 | AU2: =AS2+25 -> 426 | AV2: =LEFT(AT26,1)&MID(AT26,2,4)+12&":"&MID(AT26,7,1)&MID(AT26,8,4)+12 -> K5114:S5122 | AW2: =AU2+25 -> 451 | AX2: =LEFT(AV26,1)&MID(AV26,2,4)+12&":"&MID(AV26,7,1)&MID(AV26,8,4)+12 -> K5414:S5422 | AY2: =AW2+25 -> 476 | AZ2: =LEFT(AX26,1)&MID(AX26,2,4)+12&":"&MID(AX26,7,1)&MID(AX26,8,4)+12 -> K5714:S5722 | BA2: =AY2+25 -> 501 | BB2: =LEFT(AZ26,1)&MID(AZ26,2,4)+12&":"&MID(AZ26,7,1)&MID(AZ26,8,4)+12 -> K6014:S6022 | BC2: =BA2+25 -> 526 | BD2: =LEFT(BB26,1)&MID(BB26,2,4)+12&":"&MID(BB26,7,1)&MID(BB26,8,4)+12 -> K6314:S6322 | BE2: =BC2+25 -> 551 | BF2: =LEFT(BD26,1)&MID(BD26,2,4)+12&":"&MID(BD26,7,1)&MID(BD26,8,4)+12 -> K6614:S6622 | BG2: =BE2+25 -> 576 | BH2: =LEFT(BF26,1)&MID(BF26,2,4)+12&":"&MID(BF26,7,1)&MID(BF26,8,4)+12 -> K6914:S6922 | BI2: =BG2+25 -> 601 | BJ2: =LEFT(BH26,1)&MID(BH26,2,4)+12&":"&MID(BH26,7,1)&MID(BH26,8,4)+12 -> K7214:S7222 | BK2: =BI2+25 -> 626 | BL2: =LEFT(BJ26,1)&MID(BJ26,2,4)+12&":"&MID(BJ26,7,1)&MID(BJ26,8,4)+12 -> K7514:S7522 | BM2: =BK2+25 -> 651 | BN2: =LEFT(BL26,1)&MID(BL26,2,4)+12&":"&MID(BL26,7,1)&MID(BL26,8,4)+12 -> K7814:S7822 | BO2: =BM2+25 -> 676 | BP2: =LEFT(BN26,1)&MID(BN26,2,4)+12&":"&MID(BN26,7,1)&MID(BN26,8,4)+12 -> K8114:S8122 | BQ2: =BO2+25 -> 701 | BR2: =LEFT(BP26,1)&MID(BP26,2,4)+12&":"&MID(BP26,7,1)&MID(BP26,8,4)+12 -> K8414:S8422 | BS2: =BQ2+25 -> 726 | BT2: =LEFT(BR26,1)&MID(BR26,2,4)+12&":"&MID(BR26,7,1)&MID(BR26,8,4)+12 -> K8714:S8722 | BU2: =BS2+25 -> 751 | BV2: =LEFT(BT26,1)&MID(BT26,2,4)+12&":"&MID(BT26,7,1)&MID(BT26,8,4)+12 -> K9014:S9022 | BW2: =BU2+25 -> 776 | BX2: =LEFT(BV26,1)&MID(BV26,2,4)+12&":"&MID(BV26,7,1)&MID(BV26,8,4)+12 -> K9314:S9322 | BY2: =BW2+25 -> 801 | BZ2: =LEFT(BX26,1)&MID(BX26,2,4)+12&":"&MID(BX26,7,1)&MID(BX26,8,4)+12 -> K9614:S9622 | CA2: =BY2+25 -> 826 | CB2: =LEFT(BZ26,1)&MID(BZ26,2,4)+12&":"&MID(BZ26,7,1)&MID(BZ26,8,4)+12 -> K9914:S9922 | CC2: =CA2+25 -> 851 | CD2: =LEFT(CB26,1)&MID(CB26,2,5)+12&":"&MID(CB26,8,1)&MID(CB26,9,5)+12 -> K10214:S10222 | CE2: =CC2+25 -> 876 | CF2: =LEFT(CD26,1)&MID(CD26,2,5)+12&":"&MID(CD26,8,1)&MID(CD26,9,5)+12 -> K10514:S10522 | CG2: =CE2+25 -> 901 | CH2: =LEFT(CF26,1)&MID(CF26,2,5)+12&":"&MID(CF26,8,1)&MID(CF26,9,5)+12 -> K10814:S10822 | CI2: =CG2+25 -> 926 | CJ2: =LEFT(CH26,1)&MID(CH26,2,5)+12&":"&MID(CH26,8,1)&MID(CH26,9,5)+12 -> K11114:S11122 | CK2: =CI2+25 -> 951 | CL2: =LEFT(CJ26,1)&MID(CJ26,2,5)+12&":"&MID(CJ26,8,1)&MID(CJ26,9,5)+12 -> K11414:S11422 | CM2: =CK2+25 -> 976 | CN2: =LEFT(CL26,1)&MID(CL26,2,5)+12&":"&MID(CL26,8,1)&MID(CL26,9,5)+12 -> K11714:S11722 | CO2: =CM2+25 -> 1001 | CP2: =LEFT(CN26,1)&MID(CN26,2,5)+12&":"&MID(CN26,8,1)&MID(CN26,9,5)+12 -> K12014:S12022 | CQ2: =CO2+25 -> 1026 | CR2: =LEFT(CP26,1)&MID(CP26,2,5)+12&":"&MID(CP26,8,1)&MID(CP26,9,5)+12 -> K12314:S12322 | CS2: =CQ2+25 -> 1051 | CT2: =LEFT(CR26,1)&MID(CR26,2,5)+12&":"&MID(CR26,8,1)&MID(CR26,9,5)+12 -> K12614:S12622 | CU2: =CS2+25 -> 1076 | CV2: =LEFT(CT26,1)&MID(CT26,2,5)+12&":"&MID(CT26,8,1)&MID(CT26,9,5)+12 -> K12914:S12922 | CW2: =CU2+25 -> 1101 | CX2: =LEFT(CV26,1)&MID(CV26,2,5)+12&":"&MID(CV26,8,1)&MID(CV26,9,5)+12 -> K13214:S13222 | CY2: =CW2+25 -> 1126 | CZ2: =LEFT(CX26,1)&MID(CX26,2,5)+12&":"&MID(CX26,8,1)&MID(CX26,9,5)+12 -> K13514:S13522 | DA2: =CY2+25 -> 1151 | DB2: =LEFT(CZ26,1)&MID(CZ26,2,5)+12&":"&MID(CZ26,8,1)&MID(CZ26,9,5)+12 -> K13814:S13822 | DC2: =DA2+25 -> 1176 | DD2: =LEFT(DB26,1)&MID(DB26,2,5)+12&":"&MID(DB26,8,1)&MID(DB26,9,5)+12 -> K14114:S14122 | DE2: =DC2+25 -> 1201 | DF2: =LEFT(DD26,1)&MID(DD26,2,5)+12&":"&MID(DD26,8,1)&MID(DD26,9,5)+12 -> K14414:S14422 | DG2: =DE2+25 -> 1226 | DH2: =LEFT(DF26,1)&MID(DF26,2,5)+12&":"&MID(DF26,8,1)&MID(DF26,9,5)+12 -> K14714:S14722 | DI2: =DG2+25 -> 1251 | DJ2: =LEFT(DH26,1)&MID(DH26,2,5)+12&":"&MID(DH26,8,1)&MID(DH26,9,5)+12 -> K15014:S15022 | DK2: =DI2+25 -> 1276 | DL2: =LEFT(DJ26,1)&MID(DJ26,2,5)+12&":"&MID(DJ26,8,1)&MID(DJ26,9,5)+12 -> K15314:S15322 | DM2: =DK2+25 -> 1301 | DN2: =LEFT(DL26,1)&MID(DL26,2,5)+12&":"&MID(DL26,8,1)&MID(DL26,9,5)+12 -> K15614:S15622 | DO2: =DM2+25 -> 1326 | DP2: =LEFT(DN26,1)&MID(DN26,2,5)+12&":"&MID(DN26,8,1)&MID(DN26,9,5)+12 -> K15914:S15922 | DQ2: =DO2+25 -> 1351 | DR2: =LEFT(DP26,1)&MID(DP26,2,5)+12&":"&MID(DP26,8,1)&MID(DP26,9,5)+12 -> K16214:S16222 | DS2: =DQ2+25 -> 1376 | DT2: =LEFT(DR26,1)&MID(DR26,2,5)+12&":"&MID(DR26,8,1)&MID(DR26,9,5)+12 -> K16514:S16522 | DU2: =DS2+25 -> 1401 | DV2: =LEFT(DT26,1)&MID(DT26,2,5)+12&":"&MID(DT26,8,1)&MID(DT26,9,5)+12 -> K16814:S16822 | DW2: =DU2+25 -> 1426 | DX2: =LEFT(DV26,1)&MID(DV26,2,5)+12&":"&MID(DV26,8,1)&MID(DV26,9,5)+12 -> K17114:S17122 | DY2: =DW2+25 -> 1451 | DZ2: =LEFT(DX26,1)&MID(DX26,2,5)+12&":"&MID(DX26,8,1)&MID(DX26,9,5)+12 -> K17414:S17422 | EA2: =DY2+25 -> 1476 | EB2: =LEFT(DZ26,1)&MID(DZ26,2,5)+12&":"&MID(DZ26,8,1)&MID(DZ26,9,5)+12 -> K17714:S17722 | EC2: =EA2+25 -> 1501 | ED2: =LEFT(EB26,1)&MID(EB26,2,5)+12&":"&MID(EB26,8,1)&MID(EB26,9,5)+12 -> K18014:S18022 | EE2: =EC2+25 -> 1526 | EF2: =LEFT(ED26,1)&MID(ED26,2,5)+12&":"&MID(ED26,8,1)&MID(ED26,9,5)+12 -> K18314:S18322 | EG2: =EE2+25 -> 1551 | EH2: =LEFT(EF26,1)&MID(EF26,2,5)+12&":"&MID(EF26,8,1)&MID(EF26,9,5)+12 -> K18614:S18622 | EI2: =EG2+25 -> 1576 | EJ2: =LEFT(EH26,1)&MID(EH26,2,5)+12&":"&MID(EH26,8,1)&MID(EH26,9,5)+12 -> K18914:S18922 | EK2: =EI2+25 -> 1601 | EL2: =LEFT(EJ26,1)&MID(EJ26,2,5)+12&":"&MID(EJ26,8,1)&MID(EJ26,9,5)+12 -> K19214:S19222 | EM2: =EK2+25 -> 1626 | EN2: =LEFT(EL26,1)&MID(EL26,2,5)+12&":"&MID(EL26,8,1)&MID(EL26,9,5)+12 -> K19514:S19522 | EO2: =EM2+25 -> 1651 | EP2: =LEFT(EN26,1)&MID(EN26,2,5)+12&":"&MID(EN26,8,1)&MID(EN26,9,5)+12 -> K19814:S19822 | EQ2: =EO2+25 -> 1676 | ER2: =LEFT(EP26,1)&MID(EP26,2,5)+12&":"&MID(EP26,8,1)&MID(EP26,9,5)+12 -> K20114:S20122 | ES2: =EQ2+25 -> 1701 | ET2: =LEFT(ER26,1)&MID(ER26,2,5)+12&":"&MID(ER26,8,1)&MID(ER26,9,5)+12 -> K20414:S20422 | EU2: =ES2+25 -> 1726 | EV2: =LEFT(ET26,1)&MID(ET26,2,5)+12&":"&MID(ET26,8,1)&MID(ET26,9,5)+12 -> K20714:S20722 | EW2: =EU2+25 -> 1751 | EX2: =LEFT(EV26,1)&MID(EV26,2,5)+12&":"&MID(EV26,8,1)&MID(EV26,9,5)+12 -> K21014:S21022 | EY2: =EW2+25 -> 1776 | EZ2: =LEFT(EX26,1)&MID(EX26,2,5)+12&":"&MID(EX26,8,1)&MID(EX26,9,5)+12 -> K21314:S21322 | FA2: =EY2+25 -> 1801
M3: 2 | N3: =LEFT(N2,1)&MID(N2,2,2)+12&":"&MID(N2,5,1)&MID(N2,6,2)+12 -> K26:S34 | O3: =M3+25 -> 27 | P3: =LEFT(P2,1)&MID(P2,2,3)+12&":"&MID(P2,6,1)&MID(P2,7,3)+12 -> K326:S334 | Q3: =O3+25 -> 52 | R3: =LEFT(R2,1)&MID(R2,2,3)+12&":"&MID(R2,6,1)&MID(R2,7,3)+12 -> K626:S634 | S3: =Q3+25 -> 77 | T3: =LEFT(T2,1)&MID(T2,2,3)+12&":"&MID(T2,6,1)&MID(T2,7,3)+12 -> K926:S934 | U3: =S3+25 -> 102 | V3: =LEFT(V2,1)&MID(V2,2,4)+12&":"&MID(V2,7,1)&MID(V2,8,4)+12 -> K1226:S1234 | W3: 127 | X3: =LEFT(X2,1)&MID(X2,2,4)+12&":"&MID(X2,7,1)&MID(X2,8,4)+12 -> K1526:S1534 | Y3: 152 | Z3: =LEFT(Z2,1)&MID(Z2,2,4)+12&":"&MID(Z2,7,1)&MID(Z2,8,4)+12 -> K1826:S1834 | AA3: =Y3+25 -> 177 | AB3: =LEFT(AB2,1)&MID(AB2,2,4)+12&":"&MID(AB2,7,1)&MID(AB2,8,4)+12 -> K2126:S2134 | AC3: =AA3+25 -> 202 | AD3: =LEFT(AD2,1)&MID(AD2,2,4)+12&":"&MID(AD2,7,1)&MID(AD2,8,4)+12 -> K2426:S2434 | AE3: =AC3+25 -> 227 | AF3: =LEFT(AF2,1)&MID(AF2,2,4)+12&":"&MID(AF2,7,1)&MID(AF2,8,4)+12 -> K2726:S2734 | AG3: =AE3+25 -> 252 | AH3: =LEFT(AH2,1)&MID(AH2,2,4)+12&":"&MID(AH2,7,1)&MID(AH2,8,4)+12 -> K3026:S3034 | AI3: =AG3+25 -> 277 | AJ3: =LEFT(AJ2,1)&MID(AJ2,2,4)+12&":"&MID(AJ2,7,1)&MID(AJ2,8,4)+12 -> K3326:S3334 | AK3: =AI3+25 -> 302 | AL3: =LEFT(AL2,1)&MID(AL2,2,4)+12&":"&MID(AL2,7,1)&MID(AL2,8,4)+12 -> K3626:S3634 | AM3: =AK3+25 -> 327 | AN3: =LEFT(AN2,1)&MID(AN2,2,4)+12&":"&MID(AN2,7,1)&MID(AN2,8,4)+12 -> K3926:S3934 | AO3: =AM3+25 -> 352 | AP3: =LEFT(AP2,1)&MID(AP2,2,4)+12&":"&MID(AP2,7,1)&MID(AP2,8,4)+12 -> K4226:S4234 | AQ3: =AO3+25 -> 377 | AR3: =LEFT(AR2,1)&MID(AR2,2,4)+12&":"&MID(AR2,7,1)&MID(AR2,8,4)+12 -> K4526:S4534 | AS3: =AQ3+25 -> 402 | AT3: =LEFT(AT2,1)&MID(AT2,2,4)+12&":"&MID(AT2,7,1)&MID(AT2,8,4)+12 -> K4826:S4834 | AU3: =AS3+25 -> 427 | AV3: =LEFT(AV2,1)&MID(AV2,2,4)+12&":"&MID(AV2,7,1)&MID(AV2,8,4)+12 -> K5126:S5134 | AW3: =AU3+25 -> 452 | AX3: =LEFT(AX2,1)&MID(AX2,2,4)+12&":"&MID(AX2,7,1)&MID(AX2,8,4)+12 -> K5426:S5434 | AY3: =AW3+25 -> 477 | AZ3: =LEFT(AZ2,1)&MID(AZ2,2,4)+12&":"&MID(AZ2,7,1)&MID(AZ2,8,4)+12 -> K5726:S5734 | BA3: =AY3+25 -> 502 | BB3: =LEFT(BB2,1)&MID(BB2,2,4)+12&":"&MID(BB2,7,1)&MID(BB2,8,4)+12 -> K6026:S6034 | BC3: =BA3+25 -> 527 | BD3: =LEFT(BD2,1)&MID(BD2,2,4)+12&":"&MID(BD2,7,1)&MID(BD2,8,4)+12 -> K6326:S6334 | BE3: =BC3+25 -> 552 | BF3: =LEFT(BF2,1)&MID(BF2,2,4)+12&":"&MID(BF2,7,1)&MID(BF2,8,4)+12 -> K6626:S6634 | BG3: =BE3+25 -> 577 | BH3: =LEFT(BH2,1)&MID(BH2,2,4)+12&":"&MID(BH2,7,1)&MID(BH2,8,4)+12 -> K6926:S6934 | BI3: =BG3+25 -> 602 | BJ3: =LEFT(BJ2,1)&MID(BJ2,2,4)+12&":"&MID(BJ2,7,1)&MID(BJ2,8,4)+12 -> K7226:S7234 | BK3: =BI3+25 -> 627 | BL3: =LEFT(BL2,1)&MID(BL2,2,4)+12&":"&MID(BL2,7,1)&MID(BL2,8,4)+12 -> K7526:S7534 | BM3: =BK3+25 -> 652 | BN3: =LEFT(BN2,1)&MID(BN2,2,4)+12&":"&MID(BN2,7,1)&MID(BN2,8,4)+12 -> K7826:S7834 | BO3: =BM3+25 -> 677 | BP3: =LEFT(BP2,1)&MID(BP2,2,4)+12&":"&MID(BP2,7,1)&MID(BP2,8,4)+12 -> K8126:S8134 | BQ3: =BO3+25 -> 702 | BR3: =LEFT(BR2,1)&MID(BR2,2,4)+12&":"&MID(BR2,7,1)&MID(BR2,8,4)+12 -> K8426:S8434 | BS3: =BQ3+25 -> 727 | BT3: =LEFT(BT2,1)&MID(BT2,2,4)+12&":"&MID(BT2,7,1)&MID(BT2,8,4)+12 -> K8726:S8734 | BU3: =BS3+25 -> 752 | BV3: =LEFT(BV2,1)&MID(BV2,2,4)+12&":"&MID(BV2,7,1)&MID(BV2,8,4)+12 -> K9026:S9034 | BW3: =BU3+25 -> 777 | BX3: =LEFT(BX2,1)&MID(BX2,2,4)+12&":"&MID(BX2,7,1)&MID(BX2,8,4)+12 -> K9326:S9334 | BY3: =BW3+25 -> 802 | BZ3: =LEFT(BZ2,1)&MID(BZ2,2,4)+12&":"&MID(BZ2,7,1)&MID(BZ2,8,4)+12 -> K9626:S9634 | CA3: =BY3+25 -> 827 | CB3: =LEFT(CB2,1)&MID(CB2,2,4)+12&":"&MID(CB2,7,1)&MID(CB2,8,4)+12 -> K9926:S9934 | CC3: =CA3+25 -> 852 | CD3: =LEFT(CD2,1)&MID(CD2,2,5)+12&":"&MID(CD2,8,1)&MID(CD2,9,5)+12 -> K10226:S10234 | CE3: =CC3+25 -> 877 | CF3: =LEFT(CF2,1)&MID(CF2,2,5)+12&":"&MID(CF2,8,1)&MID(CF2,9,5)+12 -> K10526:S10534 | CG3: =CE3+25 -> 902 | CH3: =LEFT(CH2,1)&MID(CH2,2,5)+12&":"&MID(CH2,8,1)&MID(CH2,9,5)+12 -> K10826:S10834 | CI3: =CG3+25 -> 927 | CJ3: =LEFT(CJ2,1)&MID(CJ2,2,5)+12&":"&MID(CJ2,8,1)&MID(CJ2,9,5)+12 -> K11126:S11134 | CK3: =CI3+25 -> 952 | CL3: =LEFT(CL2,1)&MID(CL2,2,5)+12&":"&MID(CL2,8,1)&MID(CL2,9,5)+12 -> K11426:S11434 | CM3: =CK3+25 -> 977 | CN3: =LEFT(CN2,1)&MID(CN2,2,5)+12&":"&MID(CN2,8,1)&MID(CN2,9,5)+12 -> K11726:S11734 | CO3: =CM3+25 -> 1002 | CP3: =LEFT(CP2,1)&MID(CP2,2,5)+12&":"&MID(CP2,8,1)&MID(CP2,9,5)+12 -> K12026:S12034 | CQ3: =CO3+25 -> 1027 | CR3: =LEFT(CR2,1)&MID(CR2,2,5)+12&":"&MID(CR2,8,1)&MID(CR2,9,5)+12 -> K12326:S12334 | CS3: =CQ3+25 -> 1052 | CT3: =LEFT(CT2,1)&MID(CT2,2,5)+12&":"&MID(CT2,8,1)&MID(CT2,9,5)+12 -> K12626:S12634 | CU3: =CS3+25 -> 1077 | CV3: =LEFT(CV2,1)&MID(CV2,2,5)+12&":"&MID(CV2,8,1)&MID(CV2,9,5)+12 -> K12926:S12934 | CW3: =CU3+25 -> 1102 | CX3: =LEFT(CX2,1)&MID(CX2,2,5)+12&":"&MID(CX2,8,1)&MID(CX2,9,5)+12 -> K13226:S13234 | CY3: =CW3+25 -> 1127 | CZ3: =LEFT(CZ2,1)&MID(CZ2,2,5)+12&":"&MID(CZ2,8,1)&MID(CZ2,9,5)+12 -> K13526:S13534 | DA3: =CY3+25 -> 1152 | DB3: =LEFT(DB2,1)&MID(DB2,2,5)+12&":"&MID(DB2,8,1)&MID(DB2,9,5)+12 -> K13826:S13834 | DC3: =DA3+25 -> 1177 | DD3: =LEFT(DD2,1)&MID(DD2,2,5)+12&":"&MID(DD2,8,1)&MID(DD2,9,5)+12 -> K14126:S14134 | DE3: =DC3+25 -> 1202 | DF3: =LEFT(DF2,1)&MID(DF2,2,5)+12&":"&MID(DF2,8,1)&MID(DF2,9,5)+12 -> K14426:S14434 | DG3: =DE3+25 -> 1227 | DH3: =LEFT(DH2,1)&MID(DH2,2,5)+12&":"&MID(DH2,8,1)&MID(DH2,9,5)+12 -> K14726:S14734 | DI3: =DG3+25 -> 1252 | DJ3: =LEFT(DJ2,1)&MID(DJ2,2,5)+12&":"&MID(DJ2,8,1)&MID(DJ2,9,5)+12 -> K15026:S15034 | DK3: =DI3+25 -> 1277 | DL3: =LEFT(DL2,1)&MID(DL2,2,5)+12&":"&MID(DL2,8,1)&MID(DL2,9,5)+12 -> K15326:S15334 | DM3: =DK3+25 -> 1302 | DN3: =LEFT(DN2,1)&MID(DN2,2,5)+12&":"&MID(DN2,8,1)&MID(DN2,9,5)+12 -> K15626:S15634 | DO3: =DM3+25 -> 1327 | DP3: =LEFT(DP2,1)&MID(DP2,2,5)+12&":"&MID(DP2,8,1)&MID(DP2,9,5)+12 -> K15926:S15934 | DQ3: =DO3+25 -> 1352 | DR3: =LEFT(DR2,1)&MID(DR2,2,5)+12&":"&MID(DR2,8,1)&MID(DR2,9,5)+12 -> K16226:S16234 | DS3: =DQ3+25 -> 1377 | DT3: =LEFT(DT2,1)&MID(DT2,2,5)+12&":"&MID(DT2,8,1)&MID(DT2,9,5)+12 -> K16526:S16534 | DU3: =DS3+25 -> 1402 | DV3: =LEFT(DV2,1)&MID(DV2,2,5)+12&":"&MID(DV2,8,1)&MID(DV2,9,5)+12 -> K16826:S16834 | DW3: =DU3+25 -> 1427 | DX3: =LEFT(DX2,1)&MID(DX2,2,5)+12&":"&MID(DX2,8,1)&MID(DX2,9,5)+12 -> K17126:S17134 | DY3: =DW3+25 -> 1452 | DZ3: =LEFT(DZ2,1)&MID(DZ2,2,5)+12&":"&MID(DZ2,8,1)&MID(DZ2,9,5)+12 -> K17426:S17434 | EA3: =DY3+25 -> 1477 | EB3: =LEFT(EB2,1)&MID(EB2,2,5)+12&":"&MID(EB2,8,1)&MID(EB2,9,5)+12 -> K17726:S17734 | EC3: =EA3+25 -> 1502 | ED3: =LEFT(ED2,1)&MID(ED2,2,5)+12&":"&MID(ED2,8,1)&MID(ED2,9,5)+12 -> K18026:S18034 | EE3: =EC3+25 -> 1527 | EF3: =LEFT(EF2,1)&MID(EF2,2,5)+12&":"&MID(EF2,8,1)&MID(EF2,9,5)+12 -> K18326:S18334 | EG3: =EE3+25 -> 1552 | EH3: =LEFT(EH2,1)&MID(EH2,2,5)+12&":"&MID(EH2,8,1)&MID(EH2,9,5)+12 -> K18626:S18634 | EI3: =EG3+25 -> 1577 | EJ3: =LEFT(EJ2,1)&MID(EJ2,2,5)+12&":"&MID(EJ2,8,1)&MID(EJ2,9,5)+12 -> K18926:S18934 | EK3: =EI3+25 -> 1602 | EL3: =LEFT(EL2,1)&MID(EL2,2,5)+12&":"&MID(EL2,8,1)&MID(EL2,9,5)+12 -> K19226:S19234 | EM3: =EK3+25 -> 1627 | EN3: =LEFT(EN2,1)&MID(EN2,2,5)+12&":"&MID(EN2,8,1)&MID(EN2,9,5)+12 -> K19526:S19534 | EO3: =EM3+25 -> 1652 | EP3: =LEFT(EP2,1)&MID(EP2,2,5)+12&":"&MID(EP2,8,1)&MID(EP2,9,5)+12 -> K19826:S19834 | EQ3: =EO3+25 -> 1677 | ER3: =LEFT(ER2,1)&MID(ER2,2,5)+12&":"&MID(ER2,8,1)&MID(ER2,9,5)+12 -> K20126:S20134 | ES3: =EQ3+25 -> 1702 | ET3: =LEFT(ET2,1)&MID(ET2,2,5)+12&":"&MID(ET2,8,1)&MID(ET2,9,5)+12 -> K20426:S20434 | EU3: =ES3+25 -> 1727 | EV3: =LEFT(EV2,1)&MID(EV2,2,5)+12&":"&MID(EV2,8,1)&MID(EV2,9,5)+12 -> K20726:S20734 | EW3: =EU3+25 -> 1752 | EX3: =LEFT(EX2,1)&MID(EX2,2,5)+12&":"&MID(EX2,8,1)&MID(EX2,9,5)+12 -> K21026:S21034 | EY3: =EW3+25 -> 1777 | EZ3: =LEFT(EX27,1)&MID(EX27,2,5)+12&":"&MID(EX27,8,1)&MID(EX27,9,5)+12 ->  | FA3: =EY3+25 -> 1802
M4: 3 | N4: =LEFT(N3,1)&MID(N3,2,2)+12&":"&MID(N3,5,1)&MID(N3,6,2)+12 -> K38:S46 | O4: 28 | P4: =LEFT(P3,1)&MID(P3,2,3)+12&":"&MID(P3,6,1)&MID(P3,7,3)+12 -> K338:S346 | Q4: 53 | R4: =LEFT(R3,1)&MID(R3,2,3)+12&":"&MID(R3,6,1)&MID(R3,7,3)+12 -> K638:S646 | S4: 78 | T4: =LEFT(T3,1)&MID(T3,2,3)+12&":"&MID(T3,6,1)&MID(T3,7,3)+12 -> K938:S946 | U4: 103 | V4: =LEFT(V3,1)&MID(V3,2,4)+12&":"&MID(V3,7,1)&MID(V3,8,4)+12 -> K1238:S1246 | W4: =U4+25 -> 128 | X4: =LEFT(X3,1)&MID(X3,2,4)+12&":"&MID(X3,7,1)&MID(X3,8,4)+12 -> K1538:S1546 | Y4: =W4+25 -> 153 | Z4: =LEFT(Z3,1)&MID(Z3,2,4)+12&":"&MID(Z3,7,1)&MID(Z3,8,4)+12 -> K1838:S1846 | AA4: 178 | AB4: =LEFT(AB3,1)&MID(AB3,2,4)+12&":"&MID(AB3,7,1)&MID(AB3,8,4)+12 -> K2138:S2146 | AC4: 203 | AD4: =LEFT(AD3,1)&MID(AD3,2,4)+12&":"&MID(AD3,7,1)&MID(AD3,8,4)+12 -> K2438:S2446 | AE4: 228 | AF4: =LEFT(AF3,1)&MID(AF3,2,4)+12&":"&MID(AF3,7,1)&MID(AF3,8,4)+12 -> K2738:S2746 | AG4: 253 | AH4: =LEFT(AH3,1)&MID(AH3,2,4)+12&":"&MID(AH3,7,1)&MID(AH3,8,4)+12 -> K3038:S3046 | AI4: 278 | AJ4: =LEFT(AJ3,1)&MID(AJ3,2,4)+12&":"&MID(AJ3,7,1)&MID(AJ3,8,4)+12 -> K3338:S3346 | AK4: 303 | AL4: =LEFT(AL3,1)&MID(AL3,2,4)+12&":"&MID(AL3,7,1)&MID(AL3,8,4)+12 -> K3638:S3646 | AM4: 328 | AN4: =LEFT(AN3,1)&MID(AN3,2,4)+12&":"&MID(AN3,7,1)&MID(AN3,8,4)+12 -> K3938:S3946 | AO4: 353 | AP4: =LEFT(AP3,1)&MID(AP3,2,4)+12&":"&MID(AP3,7,1)&MID(AP3,8,4)+12 -> K4238:S4246 | AQ4: 378 | AR4: =LEFT(AR3,1)&MID(AR3,2,4)+12&":"&MID(AR3,7,1)&MID(AR3,8,4)+12 -> K4538:S4546 | AS4: 403 | AT4: =LEFT(AT3,1)&MID(AT3,2,4)+12&":"&MID(AT3,7,1)&MID(AT3,8,4)+12 -> K4838:S4846 | AU4: 428 | AV4: =LEFT(AV3,1)&MID(AV3,2,4)+12&":"&MID(AV3,7,1)&MID(AV3,8,4)+12 -> K5138:S5146 | AW4: 453 | AX4: =LEFT(AX3,1)&MID(AX3,2,4)+12&":"&MID(AX3,7,1)&MID(AX3,8,4)+12 -> K5438:S5446 | AY4: 478 | AZ4: =LEFT(AZ3,1)&MID(AZ3,2,4)+12&":"&MID(AZ3,7,1)&MID(AZ3,8,4)+12 -> K5738:S5746 | BA4: 503 | BB4: =LEFT(BB3,1)&MID(BB3,2,4)+12&":"&MID(BB3,7,1)&MID(BB3,8,4)+12 -> K6038:S6046 | BC4: 528 | BD4: =LEFT(BD3,1)&MID(BD3,2,4)+12&":"&MID(BD3,7,1)&MID(BD3,8,4)+12 -> K6338:S6346 | BE4: 553 | BF4: =LEFT(BF3,1)&MID(BF3,2,4)+12&":"&MID(BF3,7,1)&MID(BF3,8,4)+12 -> K6638:S6646 | BG4: 578 | BH4: =LEFT(BH3,1)&MID(BH3,2,4)+12&":"&MID(BH3,7,1)&MID(BH3,8,4)+12 -> K6938:S6946 | BI4: 603 | BJ4: =LEFT(BJ3,1)&MID(BJ3,2,4)+12&":"&MID(BJ3,7,1)&MID(BJ3,8,4)+12 -> K7238:S7246 | BK4: 628 | BL4: =LEFT(BL3,1)&MID(BL3,2,4)+12&":"&MID(BL3,7,1)&MID(BL3,8,4)+12 -> K7538:S7546 | BM4: 653 | BN4: =LEFT(BN3,1)&MID(BN3,2,4)+12&":"&MID(BN3,7,1)&MID(BN3,8,4)+12 -> K7838:S7846 | BO4: 678 | BP4: =LEFT(BP3,1)&MID(BP3,2,4)+12&":"&MID(BP3,7,1)&MID(BP3,8,4)+12 -> K8138:S8146 | BQ4: 703 | BR4: =LEFT(BR3,1)&MID(BR3,2,4)+12&":"&MID(BR3,7,1)&MID(BR3,8,4)+12 -> K8438:S8446 | BS4: 728 | BT4: =LEFT(BT3,1)&MID(BT3,2,4)+12&":"&MID(BT3,7,1)&MID(BT3,8,4)+12 -> K8738:S8746 | BU4: 753 | BV4: =LEFT(BV3,1)&MID(BV3,2,4)+12&":"&MID(BV3,7,1)&MID(BV3,8,4)+12 -> K9038:S9046 | BW4: 778 | BX4: =LEFT(BX3,1)&MID(BX3,2,4)+12&":"&MID(BX3,7,1)&MID(BX3,8,4)+12 -> K9338:S9346 | BY4: 803 | BZ4: =LEFT(BZ3,1)&MID(BZ3,2,4)+12&":"&MID(BZ3,7,1)&MID(BZ3,8,4)+12 -> K9638:S9646 | CA4: 828 | CB4: =LEFT(CB3,1)&MID(CB3,2,4)+12&":"&MID(CB3,7,1)&MID(CB3,8,4)+12 -> K9938:S9946 | CC4: 853 | CD4: =LEFT(CD3,1)&MID(CD3,2,5)+12&":"&MID(CD3,8,1)&MID(CD3,9,5)+12 -> K10238:S10246 | CE4: 878 | CF4: =LEFT(CF3,1)&MID(CF3,2,5)+12&":"&MID(CF3,8,1)&MID(CF3,9,5)+12 -> K10538:S10546 | CG4: 903 | CH4: =LEFT(CH3,1)&MID(CH3,2,5)+12&":"&MID(CH3,8,1)&MID(CH3,9,5)+12 -> K10838:S10846 | CI4: 928 | CJ4: =LEFT(CJ3,1)&MID(CJ3,2,5)+12&":"&MID(CJ3,8,1)&MID(CJ3,9,5)+12 -> K11138:S11146 | CK4: 953 | CL4: =LEFT(CL3,1)&MID(CL3,2,5)+12&":"&MID(CL3,8,1)&MID(CL3,9,5)+12 -> K11438:S11446 | CM4: 978 | CN4: =LEFT(CN3,1)&MID(CN3,2,5)+12&":"&MID(CN3,8,1)&MID(CN3,9,5)+12 -> K11738:S11746 | CO4: 1003 | CP4: =LEFT(CP3,1)&MID(CP3,2,5)+12&":"&MID(CP3,8,1)&MID(CP3,9,5)+12 -> K12038:S12046 | CQ4: 1028 | CR4: =LEFT(CR3,1)&MID(CR3,2,5)+12&":"&MID(CR3,8,1)&MID(CR3,9,5)+12 -> K12338:S12346 | CS4: 1053 | CT4: =LEFT(CT3,1)&MID(CT3,2,5)+12&":"&MID(CT3,8,1)&MID(CT3,9,5)+12 -> K12638:S12646 | CU4: 1078 | CV4: =LEFT(CV3,1)&MID(CV3,2,5)+12&":"&MID(CV3,8,1)&MID(CV3,9,5)+12 -> K12938:S12946 | CW4: 1103 | CX4: =LEFT(CX3,1)&MID(CX3,2,5)+12&":"&MID(CX3,8,1)&MID(CX3,9,5)+12 -> K13238:S13246 | CY4: 1128 | CZ4: =LEFT(CZ3,1)&MID(CZ3,2,5)+12&":"&MID(CZ3,8,1)&MID(CZ3,9,5)+12 -> K13538:S13546 | DA4: 1153 | DB4: =LEFT(DB3,1)&MID(DB3,2,5)+12&":"&MID(DB3,8,1)&MID(DB3,9,5)+12 -> K13838:S13846 | DC4: 1178 | DD4: =LEFT(DD3,1)&MID(DD3,2,5)+12&":"&MID(DD3,8,1)&MID(DD3,9,5)+12 -> K14138:S14146 | DE4: 1203 | DF4: =LEFT(DF3,1)&MID(DF3,2,5)+12&":"&MID(DF3,8,1)&MID(DF3,9,5)+12 -> K14438:S14446 | DG4: 1228 | DH4: =LEFT(DH3,1)&MID(DH3,2,5)+12&":"&MID(DH3,8,1)&MID(DH3,9,5)+12 -> K14738:S14746 | DI4: 1253 | DJ4: =LEFT(DJ3,1)&MID(DJ3,2,5)+12&":"&MID(DJ3,8,1)&MID(DJ3,9,5)+12 -> K15038:S15046 | DK4: 1278 | DL4: =LEFT(DL3,1)&MID(DL3,2,5)+12&":"&MID(DL3,8,1)&MID(DL3,9,5)+12 -> K15338:S15346 | DM4: 1303 | DN4: =LEFT(DN3,1)&MID(DN3,2,5)+12&":"&MID(DN3,8,1)&MID(DN3,9,5)+12 -> K15638:S15646 | DO4: 1328 | DP4: =LEFT(DP3,1)&MID(DP3,2,5)+12&":"&MID(DP3,8,1)&MID(DP3,9,5)+12 -> K15938:S15946 | DQ4: 1353 | DR4: =LEFT(DR3,1)&MID(DR3,2,5)+12&":"&MID(DR3,8,1)&MID(DR3,9,5)+12 -> K16238:S16246 | DS4: 1378 | DT4: =LEFT(DT3,1)&MID(DT3,2,5)+12&":"&MID(DT3,8,1)&MID(DT3,9,5)+12 -> K16538:S16546 | DU4: 1403 | DV4: =LEFT(DV3,1)&MID(DV3,2,5)+12&":"&MID(DV3,8,1)&MID(DV3,9,5)+12 -> K16838:S16846 | DW4: 1428 | DX4: =LEFT(DX3,1)&MID(DX3,2,5)+12&":"&MID(DX3,8,1)&MID(DX3,9,5)+12 -> K17138:S17146 | DY4: 1453 | DZ4: =LEFT(DZ3,1)&MID(DZ3,2,5)+12&":"&MID(DZ3,8,1)&MID(DZ3,9,5)+12 -> K17438:S17446 | EA4: 1478 | EB4: =LEFT(EB3,1)&MID(EB3,2,5)+12&":"&MID(EB3,8,1)&MID(EB3,9,5)+12 -> K17738:S17746 | EC4: 1503 | ED4: =LEFT(ED3,1)&MID(ED3,2,5)+12&":"&MID(ED3,8,1)&MID(ED3,9,5)+12 -> K18038:S18046 | EE4: 1528 | EF4: =LEFT(EF3,1)&MID(EF3,2,5)+12&":"&MID(EF3,8,1)&MID(EF3,9,5)+12 -> K18338:S18346 | EG4: 1553 | EH4: =LEFT(EH3,1)&MID(EH3,2,5)+12&":"&MID(EH3,8,1)&MID(EH3,9,5)+12 -> K18638:S18646 | EI4: 1578 | EJ4: =LEFT(EJ3,1)&MID(EJ3,2,5)+12&":"&MID(EJ3,8,1)&MID(EJ3,9,5)+12 -> K18938:S18946 | EK4: 1603 | EL4: =LEFT(EL3,1)&MID(EL3,2,5)+12&":"&MID(EL3,8,1)&MID(EL3,9,5)+12 -> K19238:S19246 | EM4: 1628 | EN4: =LEFT(EN3,1)&MID(EN3,2,5)+12&":"&MID(EN3,8,1)&MID(EN3,9,5)+12 -> K19538:S19546 | EO4: 1653 | EP4: =LEFT(EP3,1)&MID(EP3,2,5)+12&":"&MID(EP3,8,1)&MID(EP3,9,5)+12 -> K19838:S19846 | EQ4: 1678 | ER4: =LEFT(ER3,1)&MID(ER3,2,5)+12&":"&MID(ER3,8,1)&MID(ER3,9,5)+12 -> K20138:S20146 | ES4: 1703 | ET4: =LEFT(ET3,1)&MID(ET3,2,5)+12&":"&MID(ET3,8,1)&MID(ET3,9,5)+12 -> K20438:S20446 | EU4: 1728 | EV4: =LEFT(EV3,1)&MID(EV3,2,5)+12&":"&MID(EV3,8,1)&MID(EV3,9,5)+12 -> K20738:S20746 | EW4: 1753 | EX4: =LEFT(EX3,1)&MID(EX3,2,5)+12&":"&MID(EX3,8,1)&MID(EX3,9,5)+12 -> K21038:S21046 | EY4: 1778 | FA4: 1803
M5: 4 | N5: =LEFT(N4,1)&MID(N4,2,2)+12&":"&MID(N4,5,1)&MID(N4,6,2)+12 -> K50:S58 | O5: 29 | P5: K350:S358 | Q5: 54 | R5: K650:S658 | S5: 79 | T5: K950:S958 | U5: 104 | V5: K1250:S1258 | W5: 129 | X5: =LEFT(X4,1)&MID(X4,2,4)+12&":"&MID(X4,7,1)&MID(X4,8,4)+12 -> K1550:S1558 | Y5: 154 | Z5: K1850:S1858 | AA5: 179 | AB5: K2150:S2158 | AC5: 204 | AD5: K2450:S2458 | AE5: 229 | AF5: K2750:S2758 | AG5: 254 | AH5: K3050:S3058 | AI5: 279 | AJ5: K3350:S3358 | AK5: 304 | AL5: K3650:S3658 | AM5: 329 | AN5: K3950:S3958 | AO5: 354 | AP5: K4250:S4258 | AQ5: 379 | AR5: K4550:S4558 | AS5: 404 | AT5: K4850:S4858 | AU5: 429 | AV5: K5150:S5158 | AW5: 454 | AX5: K5450:S5458 | AY5: 479 | AZ5: K5750:S5758 | BA5: 504 | BB5: K6050:S6058 | BC5: 529 | BD5: K6350:S6358 | BE5: 554 | BF5: K6650:S6658 | BG5: 579 | BH5: K6950:S6958 | BI5: 604 | BJ5: K7250:S7258 | BK5: 629 | BL5: K7550:S7558 | BM5: 654 | BN5: K7850:S7858 | BO5: 679 | BP5: K8150:S8158 | BQ5: 704 | BR5: K8450:S8458 | BS5: 729 | BT5: K8750:S8758 | BU5: 754 | BV5: K9050:S9058 | BW5: 779 | BX5: K9350:S9358 | BY5: 804 | BZ5: K9650:S9658 | CA5: 829 | CB5: K9950:S9958 | CC5: 854 | CD5: K10250:S10258 | CE5: 879 | CF5: K10550:S10558 | CG5: 904 | CH5: K10850:S10858 | CI5: 929 | CJ5: K11150:S11158 | CK5: 954 | CL5: K11450:S11458 | CM5: 979 | CN5: K11750:S11758 | CO5: 1004 | CP5: K12050:S12058 | CQ5: 1029 | CR5: K12350:S12358 | CS5: 1054 | CT5: K12650:S12658 | CU5: 1079 | CV5: K12950:S12958 | CW5: 1104 | CX5: K13250:S13258 | CY5: 1129 | CZ5: K13550:S13558 | DA5: 1154 | DB5: K13850:S13858 | DC5: 1179 | DD5: K14150:S14158 | DE5: 1204 | DF5: K14450:S14458 | DG5: 1229 | DH5: K14750:S14758 | DI5: 1254 | DJ5: K15050:S15058 | DK5: 1279 | DL5: K15350:S15358 | DM5: 1304 | DN5: K15650:S15658 | DO5: 1329 | DP5: K15950:S15958 | DQ5: 1354 | DR5: K16250:S16258 | DS5: 1379 | DT5: K16550:S16558 | DU5: 1404 | DV5: K16850:S16858 | DW5: 1429 | DX5: K17150:S17158 | DY5: 1454 | DZ5: K17450:S17458 | EA5: 1479 | EB5: K17750:S17758 | EC5: 1504 | ED5: K18050:S18058 | EE5: 1529 | EF5: K18350:S18358 | EG5: 1554 | EH5: K18650:S18658 | EI5: 1579 | EJ5: K18950:S18958 | EK5: 1604 | EL5: K19250:S19258 | EM5: 1629 | EN5: K19550:S19558 | EO5: 1654 | EP5: K19850:S19858 | EQ5: 1679 | ER5: K20150:S20158 | ES5: 1704 | ET5: K20450:S20458 | EU5: 1729 | EV5: K20750:S20758 | EW5: 1754 | EX5: K21050:S21058 | EY5: 1779 | FA5: 1804
M6: 5 | N6: K62:S70 | O6: 30 | P6: K362:S370 | Q6: 55 | R6: K662:S670 | S6: 80 | T6: K962:S970 | U6: 105 | V6: K1262:S1270 | W6: =U6+25 -> 130 | X6: K1562:S1570 | Y6: =W6+25 -> 155 | Z6: K1862:S1870 | AA6: 180 | AB6: K2162:S2170 | AC6: 205 | AD6: K2462:S2470 | AE6: 230 | AF6: K2762:S2770 | AG6: 255 | AH6: K3062:S3070 | AI6: 280 | AJ6: K3362:S3370 | AK6: 305 | AL6: K3662:S3670 | AM6: 330 | AN6: K3962:S3970 | AO6: 355 | AP6: K4262:S4270 | AQ6: 380 | AR6: K4562:S4570 | AS6: 405 | AT6: K4862:S4870 | AU6: 430 | AV6: K5162:S5170 | AW6: 455 | AX6: K5462:S5470 | AY6: 480 | AZ6: K5762:S5770 | BA6: 505 | BB6: K6062:S6070 | BC6: 530 | BD6: K6362:S6370 | BE6: 555 | BF6: K6662:S6670 | BG6: 580 | BH6: K6962:S6970 | BI6: 605 | BJ6: K7262:S7270 | BK6: 630 | BL6: K7562:S7570 | BM6: 655 | BN6: K7862:S7870 | BO6: 680 | BP6: K8162:S8170 | BQ6: 705 | BR6: K8462:S8470 | BS6: 730 | BT6: K8762:S8770 | BU6: 755 | BV6: K9062:S9070 | BW6: 780 | BX6: K9362:S9370 | BY6: 805 | BZ6: K9662:S9670 | CA6: 830 | CB6: K9962:S9970 | CC6: 855 | CD6: K10262:S10270 | CE6: 880 | CF6: K10562:S10570 | CG6: 905 | CH6: K10862:S10870 | CI6: 930 | CJ6: K11162:S11170 | CK6: 955 | CL6: K11462:S11470 | CM6: 980 | CN6: K11762:S11770 | CO6: 1005 | CP6: K12062:S12070 | CQ6: 1030 | CR6: K12362:S12370 | CS6: 1055 | CT6: K12662:S12670 | CU6: 1080 | CV6: K12962:S12970 | CW6: 1105 | CX6: K13262:S13270 | CY6: 1130 | CZ6: K13562:S13570 | DA6: 1155 | DB6: K13862:S13870 | DC6: 1180 | DD6: K14162:S14170 | DE6: 1205 | DF6: K14462:S14470 | DG6: 1230 | DH6: K14762:S14770 | DI6: 1255 | DJ6: K15062:S15070 | DK6: 1280 | DL6: K15362:S15370 | DM6: 1305 | DN6: K15662:S15670 | DO6: 1330 | DP6: K15962:S15970 | DQ6: 1355 | DR6: K16262:S16270 | DS6: 1380 | DT6: K16562:S16570 | DU6: 1405 | DV6: K16862:S16870 | DW6: 1430 | DX6: K17162:S17170 | DY6: 1455 | DZ6: K17462:S17470 | EA6: 1480 | EB6: K17762:S17770 | EC6: 1505 | ED6: K18062:S18070 | EE6: 1530 | EF6: K18362:S18370 | EG6: 1555 | EH6: K18662:S18670 | EI6: 1580 | EJ6: K18962:S18970 | EK6: 1605 | EL6: K19262:S19270 | EM6: 1630 | EN6: K19562:S19570 | EO6: 1655 | EP6: K19862:S19870 | EQ6: 1680 | ER6: K20162:S20170 | ES6: 1705 | ET6: K20462:S20470 | EU6: 1730 | EV6: K20762:S20770 | EW6: 1755 | EX6: K21062:S21070 | EY6: 1780 | FA6: 1805
M7: 6 | N7: K74:S82 | O7: 31 | P7: K374:S382 | Q7: 56 | R7: K674:S682 | S7: 81 | T7: K974:S982 | U7: 106 | V7: K1274:S1282 | W7: 131 | X7: K1574:S1582 | Y7: 156 | Z7: K1874:S1882 | AA7: 181 | AB7: K2174:S2182 | AC7: 206 | AD7: K2474:S2482 | AE7: 231 | AF7: K2774:S2782 | AG7: 256 | AH7: K3074:S3082 | AI7: 281 | AJ7: K3374:S3382 | AK7: 306 | AL7: K3674:S3682 | AM7: 331 | AN7: K3974:S3982 | AO7: 356 | AP7: K4274:S4282 | AQ7: 381 | AR7: K4574:S4582 | AS7: 406 | AT7: K4874:S4882 | AU7: 431 | AV7: K5174:S5182 | AW7: 456 | AX7: K5474:S5482 | AY7: 481 | AZ7: K5774:S5782 | BA7: 506 | BB7: K6074:S6082 | BC7: 531 | BD7: K6374:S6382 | BE7: 556 | BF7: K6674:S6682 | BG7: 581 | BH7: K6974:S6982 | BI7: 606 | BJ7: K7274:S7282 | BK7: 631 | BL7: K7574:S7582 | BM7: 656 | BN7: K7874:S7882 | BO7: 681 | BP7: K8174:S8182 | BQ7: 706 | BR7: K8474:S8482 | BS7: 731 | BT7: K8774:S8782 | BU7: 756 | BV7: K9074:S9082 | BW7: 781 | BX7: K9374:S9382 | BY7: 806 | BZ7: K9674:S9682 | CA7: 831 | CB7: K9974:S9982 | CC7: 856 | CD7: K10274:S10282 | CE7: 881 | CF7: K10574:S10582 | CG7: 906 | CH7: K10874:S10882 | CI7: 931 | CJ7: K11174:S11182 | CK7: 956 | CL7: K11474:S11482 | CM7: 981 | CN7: K11774:S11782 | CO7: 1006 | CP7: K12074:S12082 | CQ7: 1031 | CR7: K12374:S12382 | CS7: 1056 | CT7: K12674:S12682 | CU7: 1081 | CV7: K12974:S12982 | CW7: 1106 | CX7: K13274:S13282 | CY7: 1131 | CZ7: K13574:S13582 | DA7: 1156 | DB7: K13874:S13882 | DC7: 1181 | DD7: K14174:S14182 | DE7: 1206 | DF7: K14474:S14482 | DG7: 1231 | DH7: K14774:S14782 | DI7: 1256 | DJ7: K15074:S15082 | DK7: 1281 | DL7: K15374:S15382 | DM7: 1306 | DN7: K15674:S15682 | DO7: 1331 | DP7: K15974:S15982 | DQ7: 1356 | DR7: K16274:S16282 | DS7: 1381 | DT7: K16574:S16582 | DU7: 1406 | DV7: K16874:S16882 | DW7: 1431 | DX7: K17174:S17182 | DY7: 1456 | DZ7: K17474:S17482 | EA7: 1481 | EB7: K17774:S17782 | EC7: 1506 | ED7: K18074:S18082 | EE7: 1531 | EF7: K18374:S18382 | EG7: 1556 | EH7: K18674:S18682 | EI7: 1581 | EJ7: K18974:S18982 | EK7: 1606 | EL7: K19274:S19282 | EM7: 1631 | EN7: K19574:S19582 | EO7: 1656 | EP7: K19874:S19882 | EQ7: 1681 | ER7: K20174:S20182 | ES7: 1706 | ET7: K20474:S20482 | EU7: 1731 | EV7: K20774:S20782 | EW7: 1756 | EX7: K21074:S21082 | EY7: 1781 | FA7: 1806
M8: 7 | N8: K86:S94 | O8: 32 | P8: K386:S394 | Q8: 57 | R8: K686:S694 | S8: 82 | T8: K986:S994 | U8: 107 | V8: K1286:S1294 | W8: =U8+25 -> 132 | X8: K1586:S1594 | Y8: =W8+25 -> 157 | Z8: K1886:S1894 | AA8: 182 | AB8: K2186:S2194 | AC8: 207 | AD8: K2486:S2494 | AE8: 232 | AF8: K2786:S2794 | AG8: 257 | AH8: K3086:S3094 | AI8: 282 | AJ8: K3386:S3394 | AK8: 307 | AL8: K3686:S3694 | AM8: 332 | AN8: K3986:S3994 | AO8: 357 | AP8: K4286:S4294 | AQ8: 382 | AR8: K4586:S4594 | AS8: 407 | AT8: K4886:S4894 | AU8: 432 | AV8: K5186:S5194 | AW8: 457 | AX8: K5486:S5494 | AY8: 482 | AZ8: K5786:S5794 | BA8: 507 | BB8: K6086:S6094 | BC8: 532 | BD8: K6386:S6394 | BE8: 557 | BF8: K6686:S6694 | BG8: 582 | BH8: K6986:S6994 | BI8: 607 | BJ8: K7286:S7294 | BK8: 632 | BL8: K7586:S7594 | BM8: 657 | BN8: K7886:S7894 | BO8: 682 | BP8: K8186:S8194 | BQ8: 707 | BR8: K8486:S8494 | BS8: 732 | BT8: K8786:S8794 | BU8: 757 | BV8: K9086:S9094 | BW8: 782 | BX8: K9386:S9394 | BY8: 807 | BZ8: K9686:S9694 | CA8: 832 | CB8: K9986:S9994 | CC8: 857 | CD8: K10286:S10294 | CE8: 882 | CF8: K10586:S10594 | CG8: 907 | CH8: K10886:S10894 | CI8: 932 | CJ8: K11186:S11194 | CK8: 957 | CL8: K11486:S11494 | CM8: 982 | CN8: K11786:S11794 | CO8: 1007 | CP8: K12086:S12094 | CQ8: 1032 | CR8: K12386:S12394 | CS8: 1057 | CT8: K12686:S12694 | CU8: 1082 | CV8: K12986:S12994 | CW8: 1107 | CX8: K13286:S13294 | CY8: 1132 | CZ8: K13586:S13594 | DA8: 1157 | DB8: K13886:S13894 | DC8: 1182 | DD8: K14186:S14194 | DE8: 1207 | DF8: K14486:S14494 | DG8: 1232 | DH8: K14786:S14794 | DI8: 1257 | DJ8: K15086:S15094 | DK8: 1282 | DL8: K15386:S15394 | DM8: 1307 | DN8: K15686:S15694 | DO8: 1332 | DP8: K15986:S15994 | DQ8: 1357 | DR8: K16286:S16294 | DS8: 1382 | DT8: K16586:S16594 | DU8: 1407 | DV8: K16886:S16894 | DW8: 1432 | DX8: K17186:S17194 | DY8: 1457 | DZ8: K17486:S17494 | EA8: 1482 | EB8: K17786:S17794 | EC8: 1507 | ED8: K18086:S18094 | EE8: 1532 | EF8: K18386:S18394 | EG8: 1557 | EH8: K18686:S18694 | EI8: 1582 | EJ8: K18986:S18994 | EK8: 1607 | EL8: K19286:S19294 | EM8: 1632 | EN8: K19586:S19594 | EO8: 1657 | EP8: K19886:S19894 | EQ8: 1682 | ER8: K20186:S20194 | ES8: 1707 | ET8: K20486:S20494 | EU8: 1732 | EV8: K20786:S20794 | EW8: 1757 | EX8: K21086:S21094 | EY8: 1782 | FA8: 1807
M9: 8 | N9: K98:S106 | O9: 33 | P9: K398:S406 | Q9: 58 | R9: K698:S706 | S9: 83 | T9: K998:S1006 | U9: 108 | V9: K1298:S1306 | W9: 133 | X9: K1598:S1606 | Y9: 158 | Z9: K1898:S1906 | AA9: 183 | AB9: K2198:S2206 | AC9: 208 | AD9: K2498:S2506 | AE9: 233 | AF9: K2798:S2806 | AG9: 258 | AH9: K3098:S3106 | AI9: 283 | AJ9: K3398:S3406 | AK9: 308 | AL9: K3698:S3706 | AM9: 333 | AN9: K3998:S4006 | AO9: 358 | AP9: K4298:S4306 | AQ9: 383 | AR9: K4598:S4606 | AS9: 408 | AT9: K4898:S4906 | AU9: 433 | AV9: K5198:S5206 | AW9: 458 | AX9: K5498:S5506 | AY9: 483 | AZ9: K5798:S5806 | BA9: 508 | BB9: K6098:S6106 | BC9: 533 | BD9: K6398:S6406 | BE9: 558 | BF9: K6698:S6706 | BG9: 583 | BH9: K6998:S7006 | BI9: 608 | BJ9: K7298:S7306 | BK9: 633 | BL9: K7598:S7606 | BM9: 658 | BN9: K7898:S7906 | BO9: 683 | BP9: K8198:S8206 | BQ9: 708 | BR9: K8498:S8506 | BS9: 733 | BT9: K8798:S8806 | BU9: 758 | BV9: K9098:S9106 | BW9: 783 | BX9: K9398:S9406 | BY9: 808 | BZ9: K9698:S9706 | CA9: 833 | CB9: =LEFT(CB8,1)&MID(CB8,2,4)+12&":"&MID(CB8,7,1)&MID(CB8,8,5)+12 -> K9998:S10006 | CC9: 858 | CD9: K10298:S10306 | CE9: 883 | CF9: K10598:S10606 | CG9: 908 | CH9: K10898:S10906 | CI9: 933 | CJ9: K11198:S11206 | CK9: 958 | CL9: K11498:S11506 | CM9: 983 | CN9: K11798:S11806 | CO9: 1008 | CP9: K12098:S12106 | CQ9: 1033 | CR9: K12398:S12406 | CS9: 1058 | CT9: K12698:S12706 | CU9: 1083 | CV9: K12998:S13006 | CW9: 1108 | CX9: K13298:S13306 | CY9: 1133 | CZ9: K13598:S13606 | DA9: 1158 | DB9: K13898:S13906 | DC9: 1183 | DD9: K14198:S14206 | DE9: 1208 | DF9: K14498:S14506 | DG9: 1233 | DH9: K14798:S14806 | DI9: 1258 | DJ9: K15098:S15106 | DK9: 1283 | DL9: K15398:S15406 | DM9: 1308 | DN9: K15698:S15706 | DO9: 1333 | DP9: K15998:S16006 | DQ9: 1358 | DR9: K16298:S16306 | DS9: 1383 | DT9: K16598:S16606 | DU9: 1408 | DV9: K16898:S16906 | DW9: 1433 | DX9: K17198:S17206 | DY9: 1458 | DZ9: K17498:S17506 | EA9: 1483 | EB9: K17798:S17806 | EC9: 1508 | ED9: K18098:S18106 | EE9: 1533 | EF9: K18398:S18406 | EG9: 1558 | EH9: K18698:S18706 | EI9: 1583 | EJ9: K18998:S19006 | EK9: 1608 | EL9: K19298:S19306 | EM9: 1633 | EN9: K19598:S19606 | EO9: 1658 | EP9: K19898:S19906 | EQ9: 1683 | ER9: K20198:S20206 | ES9: 1708 | ET9: K20498:S20506 | EU9: 1733 | EV9: K20798:S20806 | EW9: 1758 | EX9: K21098:S21106 | EY9: 1783 | FA9: 1808
M10: 9 | N10: =LEFT(N9,1)&MID(N9,2,2)+12&":"&MID(N9,5,1)&MID(N9,6,3)+12 -> K110:S118 | O10: 34 | P10: K410:S418 | Q10: 59 | R10: K710:S718 | S10: 84 | T10: =LEFT(T9,1)&MID(T9,2,3)+12&":"&MID(T9,6,1)&MID(T9,7,4)+12 -> K1010:S1018 | U10: 109 | V10: K1310:S1318 | W10: =U10+25 -> 134 | X10: K1610:S1618 | Y10: =W10+25 -> 159 | Z10: K1910:S1918 | AA10: 184 | AB10: K2210:S2218 | AC10: 209 | AD10: K2510:S2518 | AE10: 234 | AF10: K2810:S2818 | AG10: 259 | AH10: K3110:S3118 | AI10: 284 | AJ10: K3410:S3418 | AK10: 309 | AL10: K3710:S3718 | AM10: 334 | AN10: K4010:S4018 | AO10: 359 | AP10: K4310:S4318 | AQ10: 384 | AR10: K4610:S4618 | AS10: 409 | AT10: K4910:S4918 | AU10: 434 | AV10: K5210:S5218 | AW10: 459 | AX10: K5510:S5518 | AY10: 484 | AZ10: K5810:S5818 | BA10: 509 | BB10: K6110:S6118 | BC10: 534 | BD10: K6410:S6418 | BE10: 559 | BF10: K6710:S6718 | BG10: 584 | BH10: K7010:S7018 | BI10: 609 | BJ10: K7310:S7318 | BK10: 634 | BL10: K7610:S7618 | BM10: 659 | BN10: K7910:S7918 | BO10: 684 | BP10: K8210:S8218 | BQ10: 709 | BR10: K8510:S8518 | BS10: 734 | BT10: K8810:S8818 | BU10: 759 | BV10: K9110:S9118 | BW10: 784 | BX10: K9410:S9418 | BY10: 809 | BZ10: K9710:S9718 | CA10: 834 | CB10: =LEFT(CB9,1)&MID(CB9,2,4)+12&":"&MID(CB9,7,1)&MID(CB9,8,5)+12 -> K10010:S10018 | CC10: 859 | CD10: K10310:S10318 | CE10: 884 | CF10: K10610:S10618 | CG10: 909 | CH10: K10910:S10918 | CI10: 934 | CJ10: K11210:S11218 | CK10: 959 | CL10: K11510:S11518 | CM10: 984 | CN10: K11810:S11818 | CO10: 1009 | CP10: K12110:S12118 | CQ10: 1034 | CR10: K12410:S12418 | CS10: 1059 | CT10: K12710:S12718 | CU10: 1084 | CV10: K13010:S13018 | CW10: 1109 | CX10: K13310:S13318 | CY10: 1134 | CZ10: K13610:S13618 | DA10: 1159 | DB10: K13910:S13918 | DC10: 1184 | DD10: K14210:S14218 | DE10: 1209 | DF10: K14510:S14518 | DG10: 1234 | DH10: K14810:S14818 | DI10: 1259 | DJ10: K15110:S15118 | DK10: 1284 | DL10: K15410:S15418 | DM10: 1309 | DN10: K15710:S15718 | DO10: 1334 | DP10: K16010:S16018 | DQ10: 1359 | DR10: K16310:S16318 | DS10: 1384 | DT10: K16610:S16618 | DU10: 1409 | DV10: K16910:S16918 | DW10: 1434 | DX10: K17210:S17218 | DY10: 1459 | DZ10: K17510:S17518 | EA10: 1484 | EB10: K17810:S17818 | EC10: 1509 | ED10: K18110:S18118 | EE10: 1534 | EF10: K18410:S18418 | EG10: 1559 | EH10: K18710:S18718 | EI10: 1584 | EJ10: K19010:S19018 | EK10: 1609 | EL10: K19310:S19318 | EM10: 1634 | EN10: K19610:S19618 | EO10: 1659 | EP10: K19910:S19918 | EQ10: 1684 | ER10: K20210:S20218 | ES10: 1709 | ET10: K20510:S20518 | EU10: 1734 | EV10: K20810:S20818 | EW10: 1759 | EX10: K21110:S21118 | EY10: 1784 | FA10: 1809
D11: =IF(MIN(--(SUBSTITUTE(A1:I9,"#","")=Opgave!#REF!))=1,"Volledig juist","Er zitten nog fouten in") ->  | M11: 10 | N11: =LEFT(N10,1)&MID(N10,2,3)+12&":"&MID(N10,6,1)&MID(N10,7,3)+12 -> K122:S130 | O11: 35 | P11: K422:S430 | Q11: 60 | R11: K722:S730 | S11: 85 | T11: =LEFT(T10,1)&MID(T10,2,4)+12&":"&MID(T10,7,1)&MID(T10,8,4)+12 -> K1022:S1030 | U11: 110 | V11: K1322:S1330 | W11: 135 | X11: K1622:S1630 | Y11: 160 | Z11: K1922:S1930 | AA11: 185 | AB11: K2222:S2230 | AC11: 210 | AD11: K2522:S2530 | AE11: 235 | AF11: K2822:S2830 | AG11: 260 | AH11: K3122:S3130 | AI11: 285 | AJ11: K3422:S3430 | AK11: 310 | AL11: K3722:S3730 | AM11: 335 | AN11: K4022:S4030 | AO11: 360 | AP11: K4322:S4330 | AQ11: 385 | AR11: K4622:S4630 | AS11: 410 | AT11: K4922:S4930 | AU11: 435 | AV11: K5222:S5230 | AW11: 460 | AX11: K5522:S5530 | AY11: 485 | AZ11: K5822:S5830 | BA11: 510 | BB11: K6122:S6130 | BC11: 535 | BD11: K6422:S6430 | BE11: 560 | BF11: K6722:S6730 | BG11: 585 | BH11: K7022:S7030 | BI11: 610 | BJ11: K7322:S7330 | BK11: 635 | BL11: K7622:S7630 | BM11: 660 | BN11: K7922:S7930 | BO11: 685 | BP11: K8222:S8230 | BQ11: 710 | BR11: K8522:S8530 | BS11: 735 | BT11: K8822:S8830 | BU11: 760 | BV11: K9122:S9130 | BW11: 785 | BX11: K9422:S9430 | BY11: 810 | BZ11: K9722:S9730 | CA11: 835 | CB11: =LEFT(CB10,1)&MID(CB10,2,5)+12&":"&MID(CB10,8,1)&MID(CB10,9,5)+12 -> K10022:S10030 | CC11: 860 | CD11: K10322:S10330 | CE11: 885 | CF11: K10622:S10630 | CG11: 910 | CH11: K10922:S10930 | CI11: 935 | CJ11: K11222:S11230 | CK11: 960 | CL11: K11522:S11530 | CM11: 985 | CN11: K11822:S11830 | CO11: 1010 | CP11: K12122:S12130 | CQ11: 1035 | CR11: K12422:S12430 | CS11: 1060 | CT11: K12722:S12730 | CU11: 1085 | CV11: K13022:S13030 | CW11: 1110 | CX11: K13322:S13330 | CY11: 1135 | CZ11: K13622:S13630 | DA11: 1160 | DB11: K13922:S13930 | DC11: 1185 | DD11: K14222:S14230 | DE11: 1210 | DF11: K14522:S14530 | DG11: 1235 | DH11: K14822:S14830 | DI11: 1260 | DJ11: K15122:S15130 | DK11: 1285 | DL11: K15422:S15430 | DM11: 1310 | DN11: K15722:S15730 | DO11: 1335 | DP11: K16022:S16030 | DQ11: 1360 | DR11: K16322:S16330 | DS11: 1385 | DT11: K16622:S16630 | DU11: 1410 | DV11: K16922:S16930 | DW11: 1435 | DX11: K17222:S17230 | DY11: 1460 | DZ11: K17522:S17530 | EA11: 1485 | EB11: K17822:S17830 | EC11: 1510 | ED11: K18122:S18130 | EE11: 1535 | EF11: K18422:S18430 | EG11: 1560 | EH11: K18722:S18730 | EI11: 1585 | EJ11: K19022:S19030 | EK11: 1610 | EL11: K19322:S19330 | EM11: 1635 | EN11: K19622:S19630 | EO11: 1660 | EP11: K19922:S19930 | EQ11: 1685 | ER11: K20222:S20230 | ES11: 1710 | ET11: K20522:S20530 | EU11: 1735 | EV11: K20822:S20830 | EW11: 1760 | EX11: K21122:S21130 | EY11: 1785 | FA11: 1810
A12: In de formule hierboven "Opgave" bereik telkens aanpassen bij nieuwe puzzel. | M12: 11 | N12: =LEFT(N11,1)&MID(N11,2,3)+12&":"&MID(N11,6,1)&MID(N11,7,3)+12 -> K134:S142 | O12: 36 | P12: K434:S442 | Q12: 61 | R12: K734:S742 | S12: 86 | T12: =LEFT(T11,1)&MID(T11,2,4)+12&":"&MID(T11,7,1)&MID(T11,8,4)+12 -> K1034:S1042 | U12: 111 | V12: K1334:S1342 | W12: =U12+25 -> 136 | X12: K1634:S1642 | Y12: =W12+25 -> 161 | Z12: K1934:S1942 | AA12: 186 | AB12: K2234:S2242 | AC12: 211 | AD12: K2534:S2542 | AE12: 236 | AF12: K2834:S2842 | AG12: 261 | AH12: K3134:S3142 | AI12: 286 | AJ12: K3434:S3442 | AK12: 311 | AL12: K3734:S3742 | AM12: 336 | AN12: K4034:S4042 | AO12: 361 | AP12: K4334:S4342 | AQ12: 386 | AR12: K4634:S4642 | AS12: 411 | AT12: K4934:S4942 | AU12: 436 | AV12: K5234:S5242 | AW12: 461 | AX12: K5534:S5542 | AY12: 486 | AZ12: K5834:S5842 | BA12: 511 | BB12: K6134:S6142 | BC12: 536 | BD12: K6434:S6442 | BE12: 561 | BF12: K6734:S6742 | BG12: 586 | BH12: K7034:S7042 | BI12: 611 | BJ12: K7334:S7342 | BK12: 636 | BL12: K7634:S7642 | BM12: 661 | BN12: K7934:S7942 | BO12: 686 | BP12: K8234:S8242 | BQ12: 711 | BR12: K8534:S8542 | BS12: 736 | BT12: K8834:S8842 | BU12: 761 | BV12: K9134:S9142 | BW12: 786 | BX12: K9434:S9442 | BY12: 811 | BZ12: K9734:S9742 | CA12: 836 | CB12: =LEFT(CB11,1)&MID(CB11,2,5)+12&":"&MID(CB11,8,1)&MID(CB11,9,5)+12 -> K10034:S10042 | CC12: 861 | CD12: K10334:S10342 | CE12: 886 | CF12: K10634:S10642 | CG12: 911 | CH12: K10934:S10942 | CI12: 936 | CJ12: K11234:S11242 | CK12: 961 | CL12: K11534:S11542 | CM12: 986 | CN12: K11834:S11842 | CO12: 1011 | CP12: K12134:S12142 | CQ12: 1036 | CR12: K12434:S12442 | CS12: 1061 | CT12: K12734:S12742 | CU12: 1086 | CV12: K13034:S13042 | CW12: 1111 | CX12: K13334:S13342 | CY12: 1136 | CZ12: K13634:S13642 | DA12: 1161 | DB12: K13934:S13942 | DC12: 1186 | DD12: K14234:S14242 | DE12: 1211 | DF12: K14534:S14542 | DG12: 1236 | DH12: K14834:S14842 | DI12: 1261 | DJ12: K15134:S15142 | DK12: 1286 | DL12: K15434:S15442 | DM12: 1311 | DN12: K15734:S15742 | DO12: 1336 | DP12: K16034:S16042 | DQ12: 1361 | DR12: K16334:S16342 | DS12: 1386 | DT12: K16634:S16642 | DU12: 1411 | DV12: K16934:S16942 | DW12: 1436 | DX12: K17234:S17242 | DY12: 1461 | DZ12: K17534:S17542 | EA12: 1486 | EB12: K17834:S17842 | EC12: 1511 | ED12: K18134:S18142 | EE12: 1536 | EF12: K18434:S18442 | EG12: 1561 | EH12: K18734:S18742 | EI12: 1586 | EJ12: K19034:S19042 | EK12: 1611 | EL12: K19334:S19342 | EM12: 1636 | EN12: K19634:S19642 | EO12: 1661 | EP12: K19934:S19942 | EQ12: 1686 | ER12: K20234:S20242 | ES12: 1711 | ET12: K20534:S20542 | EU12: 1736 | EV12: K20834:S20842 | EW12: 1761 | EX12: K21134:S21142 | EY12: 1786 | FA12: 1811
A13: Voorbeeld:Opgave!(K3:S11) vervangen naar (K14:S22) | M13: 12 | N13: K146:S154 | O13: 37 | P13: K446:S454 | Q13: 62 | R13: K746:S754 | S13: 87 | T13: K1046:S1054 | U13: 112 | V13: K1346:S1354 | W13: 137 | X13: K1646:S1654 | Y13: 162 | Z13: K1946:S1954 | AA13: 187 | AB13: K2246:S2254 | AC13: 212 | AD13: K2546:S2554 | AE13: 237 | AF13: K2846:S2854 | AG13: 262 | AH13: K3146:S3154 | AI13: 287 | AJ13: K3446:S3454 | AK13: 312 | AL13: K3746:S3754 | AM13: 337 | AN13: K4046:S4054 | AO13: 362 | AP13: K4346:S4354 | AQ13: 387 | AR13: K4646:S4654 | AS13: 412 | AT13: K4946:S4954 | AU13: 437 | AV13: K5246:S5254 | AW13: 462 | AX13: K5546:S5554 | AY13: 487 | AZ13: K5846:S5854 | BA13: 512 | BB13: K6146:S6154 | BC13: 537 | BD13: K6446:S6454 | BE13: 562 | BF13: K6746:S6754 | BG13: 587 | BH13: K7046:S7054 | BI13: 612 | BJ13: K7346:S7354 | BK13: 637 | BL13: K7646:S7654 | BM13: 662 | BN13: K7946:S7954 | BO13: 687 | BP13: K8246:S8254 | BQ13: 712 | BR13: K8546:S8554 | BS13: 737 | BT13: K8846:S8854 | BU13: 762 | BV13: K9146:S9154 | BW13: 787 | BX13: K9446:S9454 | BY13: 812 | BZ13: K9746:S9754 | CA13: 837 | CB13: K10046:S10054 | CC13: 862 | CD13: K10346:S10354 | CE13: 887 | CF13: K10646:S10654 | CG13: 912 | CH13: K10946:S10954 | CI13: 937 | CJ13: K11246:S11254 | CK13: 962 | CL13: K11546:S11554 | CM13: 987 | CN13: K11846:S11854 | CO13: 1012 | CP13: K12146:S12154 | CQ13: 1037 | CR13: K12446:S12454 | CS13: 1062 | CT13: K12746:S12754 | CU13: 1087 | CV13: K13046:S13054 | CW13: 1112 | CX13: K13346:S13354 | CY13: 1137 | CZ13: K13646:S13654 | DA13: 1162 | DB13: K13946:S13954 | DC13: 1187 | DD13: K14246:S14254 | DE13: 1212 | DF13: K14546:S14554 | DG13: 1237 | DH13: K14846:S14854 | DI13: 1262 | DJ13: K15146:S15154 | DK13: 1287 | DL13: K15446:S15454 | DM13: 1312 | DN13: K15746:S15754 | DO13: 1337 | DP13: K16046:S16054 | DQ13: 1362 | DR13: K16346:S16354 | DS13: 1387 | DT13: K16646:S16654 | DU13: 1412 | DV13: K16946:S16954 | DW13: 1437 | DX13: K17246:S17254 | DY13: 1462 | DZ13: K17546:S17554 | EA13: 1487 | EB13: K17846:S17854 | EC13: 1512 | ED13: K18146:S18154 | EE13: 1537 | EF13: K18446:S18454 | EG13: 1562 | EH13: K18746:S18754 | EI13: 1587 | EJ13: K19046:S19054 | EK13: 1612 | EL13: K19346:S19354 | EM13: 1637 | EN13: K19646:S19654 | EO13: 1662 | EP13: K19946:S19954 | EQ13: 1687 | ER13: K20246:S20254 | ES13: 1712 | ET13: K20546:S20554 | EU13: 1737 | EV13: K20846:S20854 | EW13: 1762 | EX13: K21146:S21154 | EY13: 1787 | FA13: 1812
M14: 13 | N14: K158:S166 | O14: 38 | P14: K458:S466 | Q14: 63 | R14: K758:S766 | S14: 88 | T14: K1058:S1066 | U14: 113 | V14: K1358:S1366 | W14: =U14+25 -> 138 | X14: K1658:S1666 | Y14: =W14+25 -> 163 | Z14: K1958:S1966 | AA14: 188 | AB14: K2258:S2266 | AC14: 213 | AD14: K2558:S2566 | AE14: 238 | AF14: K2858:S2866 | AG14: 263 | AH14: K3158:S3166 | AI14: 288 | AJ14: K3458:S3466 | AK14: 313 | AL14: K3758:S3766 | AM14: 338 | AN14: K4058:S4066 | AO14: 363 | AP14: K4358:S4366 | AQ14: 388 | AR14: K4658:S4666 | AS14: 413 | AT14: K4958:S4966 | AU14: 438 | AV14: K5258:S5266 | AW14: 463 | AX14: K5558:S5566 | AY14: 488 | AZ14: K5858:S5866 | BA14: 513 | BB14: K6158:S6166 | BC14: 538 | BD14: K6458:S6466 | BE14: 563 | BF14: K6758:S6766 | BG14: 588 | BH14: K7058:S7066 | BI14: 613 | BJ14: K7358:S7366 | BK14: 638 | BL14: K7658:S7666 | BM14: 663 | BN14: K7958:S7966 | BO14: 688 | BP14: K8258:S8266 | BQ14: 713 | BR14: K8558:S8566 | BS14: 738 | BT14: K8858:S8866 | BU14: 763 | BV14: K9158:S9166 | BW14: 788 | BX14: K9458:S9466 | BY14: 813 | BZ14: K9758:S9766 | CA14: 838 | CB14: K10058:S10066 | CC14: 863 | CD14: K10358:S10366 | CE14: 888 | CF14: K10658:S10666 | CG14: 913 | CH14: K10958:S10966 | CI14: 938 | CJ14: K11258:S11266 | CK14: 963 | CL14: K11558:S11566 | CM14: 988 | CN14: K11858:S11866 | CO14: 1013 | CP14: K12158:S12166 | CQ14: 1038 | CR14: K12458:S12466 | CS14: 1063 | CT14: K12758:S12766 | CU14: 1088 | CV14: K13058:S13066 | CW14: 1113 | CX14: K13358:S13366 | CY14: 1138 | CZ14: K13658:S13666 | DA14: 1163 | DB14: K13958:S13966 | DC14: 1188 | DD14: K14258:S14266 | DE14: 1213 | DF14: K14558:S14566 | DG14: 1238 | DH14: K14858:S14866 | DI14: 1263 | DJ14: K15158:S15166 | DK14: 1288 | DL14: K15458:S15466 | DM14: 1313 | DN14: K15758:S15766 | DO14: 1338 | DP14: K16058:S16066 | DQ14: 1363 | DR14: K16358:S16366 | DS14: 1388 | DT14: K16658:S16666 | DU14: 1413 | DV14: K16958:S16966 | DW14: 1438 | DX14: K17258:S17266 | DY14: 1463 | DZ14: K17558:S17566 | EA14: 1488 | EB14: K17858:S17866 | EC14: 1513 | ED14: K18158:S18166 | EE14: 1538 | EF14: K18458:S18466 | EG14: 1563 | EH14: K18758:S18766 | EI14: 1588 | EJ14: K19058:S19066 | EK14: 1613 | EL14: K19358:S19366 | EM14: 1638 | EN14: K19658:S19666 | EO14: 1663 | EP14: K19958:S19966 | EQ14: 1688 | ER14: K20258:S20266 | ES14: 1713 | ET14: K20558:S20566 | EU14: 1738 | EV14: K20858:S20866 | EW14: 1763 | EX14: K21158:S21166 | EY14: 1788 | FA14: 1813
A15: Geef het volgnummer een andere achtergrondkleur(weet U wat al gedaan is). | M15: 14 | N15: K170:S178 | O15: 39 | P15: K470:S478 | Q15: 64 | R15: K770:S778 | S15: 89 | T15: K1070:S1078 | U15: 114 | V15: K1370:S1378 | W15: 139 | X15: K1670:S1678 | Y15: 164 | Z15: K1970:S1978 | AA15: 189 | AB15: K2270:S2278 | AC15: 214 | AD15: K2570:S2578 | AE15: 239 | AF15: K2870:S2878 | AG15: 264 | AH15: K3170:S3178 | AI15: 289 | AJ15: K3470:S3478 | AK15: 314 | AL15: K3770:S3778 | AM15: 339 | AN15: K4070:S4078 | AO15: 364 | AP15: K4370:S4378 | AQ15: 389 | AR15: K4670:S4678 | AS15: 414 | AT15: K4970:S4978 | AU15: 439 | AV15: K5270:S5278 | AW15: 464 | AX15: K5570:S5578 | AY15: 489 | AZ15: K5870:S5878 | BA15: 514 | BB15: K6170:S6178 | BC15: 539 | BD15: K6470:S6478 | BE15: 564 | BF15: K6770:S6778 | BG15: 589 | BH15: K7070:S7078 | BI15: 614 | BJ15: K7370:S7378 | BK15: 639 | BL15: K7670:S7678 | BM15: 664 | BN15: K7970:S7978 | BO15: 689 | BP15: K8270:S8278 | BQ15: 714 | BR15: K8570:S8578 | BS15: 739 | BT15: K8870:S8878 | BU15: 764 | BV15: K9170:S9178 | BW15: 789 | BX15: K9470:S9478 | BY15: 814 | BZ15: K9770:S9778 | CA15: 839 | CB15: K10070:S10078 | CC15: 864 | CD15: K10370:S10378 | CE15: 889 | CF15: K10670:S10678 | CG15: 914 | CH15: K10970:S10978 | CI15: 939 | CJ15: K11270:S11278 | CK15: 964 | CL15: K11570:S11578 | CM15: 989 | CN15: K11870:S11878 | CO15: 1014 | CP15: K12170:S12178 | CQ15: 1039 | CR15: K12470:S12478 | CS15: 1064 | CT15: K12770:S12778 | CU15: 1089 | CV15: K13070:S13078 | CW15: 1114 | CX15: K13370:S13378 | CY15: 1139 | CZ15: K13670:S13678 | DA15: 1164 | DB15: K13970:S13978 | DC15: 1189 | DD15: K14270:S14278 | DE15: 1214 | DF15: K14570:S14578 | DG15: 1239 | DH15: K14870:S14878 | DI15: 1264 | DJ15: K15170:S15178 | DK15: 1289 | DL15: K15470:S15478 | DM15: 1314 | DN15: K15770:S15778 | DO15: 1339 | DP15: K16070:S16078 | DQ15: 1364 | DR15: K16370:S16378 | DS15: 1389 | DT15: K16670:S16678 | DU15: 1414 | DV15: K16970:S16978 | DW15: 1439 | DX15: K17270:S17278 | DY15: 1464 | DZ15: K17570:S17578 | EA15: 1489 | EB15: K17870:S17878 | EC15: 1514 | ED15: K18170:S18178 | EE15: 1539 | EF15: K18470:S18478 | EG15: 1564 | EH15: K18770:S18778 | EI15: 1589 | EJ15: K19070:S19078 | EK15: 1614 | EL15: K19370:S19378 | EM15: 1639 | EN15: K19670:S19678 | EO15: 1664 | EP15: K19970:S19978 | EQ15: 1689 | ER15: K20270:S20278 | ES15: 1714 | ET15: K20570:S20578 | EU15: 1739 | EV15: K20870:S20878 | EW15: 1764 | EX15: K21170:S21178 | EY15: 1789 | FA15: 1814
M16: 15 | N16: K182:S190 | O16: 40 | P16: K482:S490 | Q16: 65 | R16: K782:S790 | S16: 90 | T16: K1082:S1090 | U16: 115 | V16: K1382:S1390 | W16: =U16+25 -> 140 | X16: K1682:S1690 | Y16: =W16+25 -> 165 | Z16: K1982:S1990 | AA16: 190 | AB16: K2282:S2290 | AC16: 215 | AD16: K2582:S2590 | AE16: 240 | AF16: K2882:S2890 | AG16: 265 | AH16: K3182:S3190 | AI16: 290 | AJ16: K3482:S3490 | AK16: 315 | AL16: K3782:S3790 | AM16: 340 | AN16: K4082:S4090 | AO16: 365 | AP16: K4382:S4390 | AQ16: 390 | AR16: K4682:S4690 | AS16: 415 | AT16: K4982:S4990 | AU16: 440 | AV16: K5282:S5290 | AW16: 465 | AX16: K5582:S5590 | AY16: 490 | AZ16: K5882:S5890 | BA16: 515 | BB16: K6182:S6190 | BC16: 540 | BD16: K6482:S6490 | BE16: 565 | BF16: K6782:S6790 | BG16: 590 | BH16: K7082:S7090 | BI16: 615 | BJ16: K7382:S7390 | BK16: 640 | BL16: K7682:S7690 | BM16: 665 | BN16: K7982:S7990 | BO16: 690 | BP16: K8282:S8290 | BQ16: 715 | BR16: K8582:S8590 | BS16: 740 | BT16: K8882:S8890 | BU16: 765 | BV16: K9182:S9190 | BW16: 790 | BX16: K9482:S9490 | BY16: 815 | BZ16: K9782:S9790 | CA16: 840 | CB16: K10082:S10090 | CC16: 865 | CD16: K10382:S10390 | CE16: 890 | CF16: K10682:S10690 | CG16: 915 | CH16: K10982:S10990 | CI16: 940 | CJ16: K11282:S11290 | CK16: 965 | CL16: K11582:S11590 | CM16: 990 | CN16: K11882:S11890 | CO16: 1015 | CP16: K12182:S12190 | CQ16: 1040 | CR16: K12482:S12490 | CS16: 1065 | CT16: K12782:S12790 | CU16: 1090 | CV16: K13082:S13090 | CW16: 1115 | CX16: K13382:S13390 | CY16: 1140 | CZ16: K13682:S13690 | DA16: 1165 | DB16: K13982:S13990 | DC16: 1190 | DD16: K14282:S14290 | DE16: 1215 | DF16: K14582:S14590 | DG16: 1240 | DH16: K14882:S14890 | DI16: 1265 | DJ16: K15182:S15190 | DK16: 1290 | DL16: K15482:S15490 | DM16: 1315 | DN16: K15782:S15790 | DO16: 1340 | DP16: K16082:S16090 | DQ16: 1365 | DR16: K16382:S16390 | DS16: 1390 | DT16: K16682:S16690 | DU16: 1415 | DV16: K16982:S16990 | DW16: 1440 | DX16: K17282:S17290 | DY16: 1465 | DZ16: K17582:S17590 | EA16: 1490 | EB16: K17882:S17890 | EC16: 1515 | ED16: K18182:S18190 | EE16: 1540 | EF16: K18482:S18490 | EG16: 1565 | EH16: K18782:S18790 | EI16: 1590 | EJ16: K19082:S19090 | EK16: 1615 | EL16: K19382:S19390 | EM16: 1640 | EN16: K19682:S19690 | EO16: 1665 | EP16: K19982:S19990 | EQ16: 1690 | ER16: K20282:S20290 | ES16: 1715 | ET16: K20582:S20590 | EU16: 1740 | EV16: K20882:S20890 | EW16: 1765 | EX16: K21182:S21190 | EY16: 1790 | FA16: 1815
A17: De oplossing staat rechts op het tabblad Opgave. | M17: 16 | N17: K194:S202 | O17: 41 | P17: K494:S502 | Q17: 66 | R17: K794:S802 | S17: 91 | T17: K1094:S1102 | U17: 116 | V17: K1394:S1402 | W17: 141 | X17: K1694:S1702 | Y17: 166 | Z17: K1994:S2002 | AA17: 191 | AB17: K2294:S2302 | AC17: 216 | AD17: K2594:S2602 | AE17: 241 | AF17: K2894:S2902 | AG17: 266 | AH17: K3194:S3202 | AI17: 291 | AJ17: K3494:S3502 | AK17: 316 | AL17: K3794:S3802 | AM17: 341 | AN17: K4094:S4102 | AO17: 366 | AP17: K4394:S4402 | AQ17: 391 | AR17: K4694:S4702 | AS17: 416 | AT17: K4994:S5002 | AU17: 441 | AV17: K5294:S5302 | AW17: 466 | AX17: K5594:S5602 | AY17: 491 | AZ17: K5894:S5902 | BA17: 516 | BB17: K6194:S6202 | BC17: 541 | BD17: K6494:S6502 | BE17: 566 | BF17: K6794:S6802 | BG17: 591 | BH17: K7094:S7102 | BI17: 616 | BJ17: K7394:S7402 | BK17: 641 | BL17: K7694:S7702 | BM17: 666 | BN17: K7994:S8002 | BO17: 691 | BP17: K8294:S8302 | BQ17: 716 | BR17: K8594:S8602 | BS17: 741 | BT17: K8894:S8902 | BU17: 766 | BV17: K9194:S9202 | BW17: 791 | BX17: K9494:S9502 | BY17: 816 | BZ17: K9794:S9802 | CA17: 841 | CB17: K10094:S10102 | CC17: 866 | CD17: K10394:S10402 | CE17: 891 | CF17: K10694:S10702 | CG17: 916 | CH17: K10994:S11002 | CI17: 941 | CJ17: K11294:S11302 | CK17: 966 | CL17: K11594:S11602 | CM17: 991 | CN17: K11894:S11902 | CO17: 1016 | CP17: K12194:S12202 | CQ17: 1041 | CR17: K12494:S12502 | CS17: 1066 | CT17: K12794:S12802 | CU17: 1091 | CV17: K13094:S13102 | CW17: 1116 | CX17: K13394:S13402 | CY17: 1141 | CZ17: K13694:S13702 | DA17: 1166 | DB17: K13994:S14002 | DC17: 1191 | DD17: K14294:S14302 | DE17: 1216 | DF17: K14594:S14602 | DG17: 1241 | DH17: K14894:S14902 | DI17: 1266 | DJ17: K15194:S15202 | DK17: 1291 | DL17: K15494:S15502 | DM17: 1316 | DN17: K15794:S15802 | DO17: 1341 | DP17: K16094:S16102 | DQ17: 1366 | DR17: K16394:S16402 | DS17: 1391 | DT17: K16694:S16702 | DU17: 1416 | DV17: K16994:S17002 | DW17: 1441 | DX17: K17294:S17302 | DY17: 1466 | DZ17: K17594:S17602 | EA17: 1491 | EB17: K17894:S17902 | EC17: 1516 | ED17: K18194:S18202 | EE17: 1541 | EF17: K18494:S18502 | EG17: 1566 | EH17: K18794:S18802 | EI17: 1591 | EJ17: K19094:S19102 | EK17: 1616 | EL17: K19394:S19402 | EM17: 1641 | EN17: K19694:S19702 | EO17: 1666 | EP17: K19994:S20002 | EQ17: 1691 | ER17: K20294:S20302 | ES17: 1716 | ET17: K20594:S20602 | EU17: 1741 | EV17: K20894:S20902 | EW17: 1766 | EX17: K21194:S21202 | EY17: 1791 | FA17: 1816
A18: Oplossingen zo plaatsen dat deze niet zichtbaar zijn. | M18: 17 | N18: K206:S214 | O18: 42 | P18: K506:S514 | Q18: 67 | R18: K806:S814 | S18: 92 | T18: K1106:S1114 | U18: 117 | V18: K1406:S1414 | W18: =U18+25 -> 142 | X18: K1706:S1714 | Y18: =W18+25 -> 167 | Z18: K2006:S2014 | AA18: 192 | AB18: K2306:S2314 | AC18: 217 | AD18: K2606:S2614 | AE18: 242 | AF18: K2906:S2914 | AG18: 267 | AH18: K3206:S3214 | AI18: 292 | AJ18: K3506:S3514 | AK18: 317 | AL18: K3806:S3814 | AM18: 342 | AN18: K4106:S4114 | AO18: 367 | AP18: K4406:S4414 | AQ18: 392 | AR18: K4706:S4714 | AS18: 417 | AT18: K5006:S5014 | AU18: 442 | AV18: K5306:S5314 | AW18: 467 | AX18: K5606:S5614 | AY18: 492 | AZ18: K5906:S5914 | BA18: 517 | BB18: K6206:S6214 | BC18: 542 | BD18: K6506:S6514 | BE18: 567 | BF18: K6806:S6814 | BG18: 592 | BH18: K7106:S7114 | BI18: 617 | BJ18: K7406:S7414 | BK18: 642 | BL18: K7706:S7714 | BM18: 667 | BN18: K8006:S8014 | BO18: 692 | BP18: K8306:S8314 | BQ18: 717 | BR18: K8606:S8614 | BS18: 742 | BT18: K8906:S8914 | BU18: 767 | BV18: K9206:S9214 | BW18: 792 | BX18: K9506:S9514 | BY18: 817 | BZ18: K9806:S9814 | CA18: 842 | CB18: K10106:S10114 | CC18: 867 | CD18: K10406:S10414 | CE18: 892 | CF18: K10706:S10714 | CG18: 917 | CH18: K11006:S11014 | CI18: 942 | CJ18: K11306:S11314 | CK18: 967 | CL18: K11606:S11614 | CM18: 992 | CN18: K11906:S11914 | CO18: 1017 | CP18: K12206:S12214 | CQ18: 1042 | CR18: K12506:S12514 | CS18: 1067 | CT18: K12806:S12814 | CU18: 1092 | CV18: K13106:S13114 | CW18: 1117 | CX18: K13406:S13414 | CY18: 1142 | CZ18: K13706:S13714 | DA18: 1167 | DB18: K14006:S14014 | DC18: 1192 | DD18: K14306:S14314 | DE18: 1217 | DF18: K14606:S14614 | DG18: 1242 | DH18: K14906:S14914 | DI18: 1267 | DJ18: K15206:S15214 | DK18: 1292 | DL18: K15506:S15514 | DM18: 1317 | DN18: K15806:S15814 | DO18: 1342 | DP18: K16106:S16114 | DQ18: 1367 | DR18: K16406:S16414 | DS18: 1392 | DT18: K16706:S16714 | DU18: 1417 | DV18: K17006:S17014 | DW18: 1442 | DX18: K17306:S17314 | DY18: 1467 | DZ18: K17606:S17614 | EA18: 1492 | EB18: K17906:S17914 | EC18: 1517 | ED18: K18206:S18214 | EE18: 1542 | EF18: K18506:S18514 | EG18: 1567 | EH18: K18806:S18814 | EI18: 1592 | EJ18: K19106:S19114 | EK18: 1617 | EL18: K19406:S19414 | EM18: 1642 | EN18: K19706:S19714 | EO18: 1667 | EP18: K20006:S20014 | EQ18: 1692 | ER18: K20306:S20314 | ES18: 1717 | ET18: K20606:S20614 | EU18: 1742 | EV18: K20906:S20914 | EW18: 1767 | EX18: K21206:S21214 | EY18: 1792 | FA18: 1817
M19: 18 | N19: K218:S226 | O19: 43 | P19: K518:S526 | Q19: 68 | R19: K818:S826 | S19: 93 | T19: K1118:S1126 | U19: 118 | V19: K1418:S1426 | W19: 143 | X19: K1718:S1726 | Y19: 168 | Z19: K2018:S2026 | AA19: 193 | AB19: K2318:S2326 | AC19: 218 | AD19: K2618:S2626 | AE19: 243 | AF19: K2918:S2926 | AG19: 268 | AH19: K3218:S3226 | AI19: 293 | AJ19: K3518:S3526 | AK19: 318 | AL19: K3818:S3826 | AM19: 343 | AN19: K4118:S4126 | AO19: 368 | AP19: K4418:S4426 | AQ19: 393 | AR19: K4718:S4726 | AS19: 418 | AT19: K5018:S5026 | AU19: 443 | AV19: K5318:S5326 | AW19: 468 | AX19: K5618:S5626 | AY19: 493 | AZ19: K5918:S5926 | BA19: 518 | BB19: K6218:S6226 | BC19: 543 | BD19: K6518:S6526 | BE19: 568 | BF19: K6818:S6826 | BG19: 593 | BH19: K7118:S7126 | BI19: 618 | BJ19: K7418:S7426 | BK19: 643 | BL19: K7718:S7726 | BM19: 668 | BN19: K8018:S8026 | BO19: 693 | BP19: K8318:S8326 | BQ19: 718 | BR19: K8618:S8626 | BS19: 743 | BT19: K8918:S8926 | BU19: 768 | BV19: K9218:S9226 | BW19: 793 | BX19: K9518:S9526 | BY19: 818 | BZ19: K9818:S9826 | CA19: 843 | CB19: K10118:S10126 | CC19: 868 | CD19: K10418:S10426 | CE19: 893 | CF19: K10718:S10726 | CG19: 918 | CH19: K11018:S11026 | CI19: 943 | CJ19: K11318:S11326 | CK19: 968 | CL19: K11618:S11626 | CM19: 993 | CN19: K11918:S11926 | CO19: 1018 | CP19: K12218:S12226 | CQ19: 1043 | CR19: K12518:S12526 | CS19: 1068 | CT19: K12818:S12826 | CU19: 1093 | CV19: K13118:S13126 | CW19: 1118 | CX19: K13418:S13426 | CY19: 1143 | CZ19: K13718:S13726 | DA19: 1168 | DB19: K14018:S14026 | DC19: 1193 | DD19: K14318:S14326 | DE19: 1218 | DF19: K14618:S14626 | DG19: 1243 | DH19: K14918:S14926 | DI19: 1268 | DJ19: K15218:S15226 | DK19: 1293 | DL19: K15518:S15526 | DM19: 1318 | DN19: K15818:S15826 | DO19: 1343 | DP19: K16118:S16126 | DQ19: 1368 | DR19: K16418:S16426 | DS19: 1393 | DT19: K16718:S16726 | DU19: 1418 | DV19: K17018:S17026 | DW19: 1443 | DX19: K17318:S17326 | DY19: 1468 | DZ19: K17618:S17626 | EA19: 1493 | EB19: K17918:S17926 | EC19: 1518 | ED19: K18218:S18226 | EE19: 1543 | EF19: K18518:S18526 | EG19: 1568 | EH19: K18818:S18826 | EI19: 1593 | EJ19: K19118:S19126 | EK19: 1618 | EL19: K19418:S19426 | EM19: 1643 | EN19: K19718:S19726 | EO19: 1668 | EP19: K20018:S20026 | EQ19: 1693 | ER19: K20318:S20326 | ES19: 1718 | ET19: K20618:S20626 | EU19: 1743 | EV19: K20918:S20926 | EW19: 1768 | EX19: K21218:S21226 | EY19: 1793 | FA19: 1818
M20: 19 | N20: K230:S238 | O20: 44 | P20: K530:S538 | Q20: 69 | R20: K830:S838 | S20: 94 | T20: K1130:S1138 | U20: 119 | V20: K1430:S1438 | W20: =U20+25 -> 144 | X20: K1730:S1738 | Y20: =W20+25 -> 169 | Z20: K2030:S2038 | AA20: 194 | AB20: K2330:S2338 | AC20: 219 | AD20: K2630:S2638 | AE20: 244 | AF20: K2930:S2938 | AG20: 269 | AH20: K3230:S3238 | AI20: 294 | AJ20: K3530:S3538 | AK20: 319 | AL20: K3830:S3838 | AM20: 344 | AN20: K4130:S4138 | AO20: 369 | AP20: K4430:S4438 | AQ20: 394 | AR20: K4730:S4738 | AS20: 419 | AT20: K5030:S5038 | AU20: 444 | AV20: K5330:S5338 | AW20: 469 | AX20: K5630:S5638 | AY20: 494 | AZ20: K5930:S5938 | BA20: 519 | BB20: K6230:S6238 | BC20: 544 | BD20: K6530:S6538 | BE20: 569 | BF20: K6830:S6838 | BG20: 594 | BH20: K7130:S7138 | BI20: 619 | BJ20: K7430:S7438 | BK20: 644 | BL20: K7730:S7738 | BM20: 669 | BN20: K8030:S8038 | BO20: 694 | BP20: K8330:S8338 | BQ20: 719 | BR20: K8630:S8638 | BS20: 744 | BT20: K8930:S8938 | BU20: 769 | BV20: K9230:S9238 | BW20: 794 | BX20: K9530:S9538 | BY20: 819 | BZ20: K9830:S9838 | CA20: 844 | CB20: K10130:S10138 | CC20: 869 | CD20: K10430:S10438 | CE20: 894 | CF20: K10730:S10738 | CG20: 919 | CH20: K11030:S11038 | CI20: 944 | CJ20: K11330:S11338 | CK20: 969 | CL20: K11630:S11638 | CM20: 994 | CN20: K11930:S11938 | CO20: 1019 | CP20: K12230:S12238 | CQ20: 1044 | CR20: K12530:S12538 | CS20: 1069 | CT20: K12830:S12838 | CU20: 1094 | CV20: K13130:S13138 | CW20: 1119 | CX20: K13430:S13438 | CY20: 1144 | CZ20: K13730:S13738 | DA20: 1169 | DB20: K14030:S14038 | DC20: 1194 | DD20: K14330:S14338 | DE20: 1219 | DF20: K14630:S14638 | DG20: 1244 | DH20: K14930:S14938 | DI20: 1269 | DJ20: K15230:S15238 | DK20: 1294 | DL20: K15530:S15538 | DM20: 1319 | DN20: K15830:S15838 | DO20: 1344 | DP20: K16130:S16138 | DQ20: 1369 | DR20: K16430:S16438 | DS20: 1394 | DT20: K16730:S16738 | DU20: 1419 | DV20: K17030:S17038 | DW20: 1444 | DX20: K17330:S17338 | DY20: 1469 | DZ20: K17630:S17638 | EA20: 1494 | EB20: K17930:S17938 | EC20: 1519 | ED20: K18230:S18238 | EE20: 1544 | EF20: K18530:S18538 | EG20: 1569 | EH20: K18830:S18838 | EI20: 1594 | EJ20: K19130:S19138 | EK20: 1619 | EL20: K19430:S19438 | EM20: 1644 | EN20: K19730:S19738 | EO20: 1669 | EP20: K20030:S20038 | EQ20: 1694 | ER20: K20330:S20338 | ES20: 1719 | ET20: K20630:S20638 | EU20: 1744 | EV20: K20930:S20938 | EW20: 1769 | EX20: K21230:S21238 | EY20: 1794 | FA20: 1819
M21: 20 | N21: K242:S250 | O21: 45 | P21: K542:S550 | Q21: 70 | R21: K842:S850 | S21: 95 | T21: K1142:S1150 | U21: 120 | V21: K1442:S1450 | W21: 145 | X21: K1742:S1750 | Y21: 170 | Z21: K2042:S2050 | AA21: 195 | AB21: K2342:S2350 | AC21: 220 | AD21: K2642:S2650 | AE21: 245 | AF21: K2942:S2950 | AG21: 270 | AH21: K3242:S3250 | AI21: 295 | AJ21: K3542:S3550 | AK21: 320 | AL21: K3842:S3850 | AM21: 345 | AN21: K4142:S4150 | AO21: 370 | AP21: K4442:S4450 | AQ21: 395 | AR21: K4742:S4750 | AS21: 420 | AT21: K5042:S5050 | AU21: 445 | AV21: K5342:S5350 | AW21: 470 | AX21: K5642:S5650 | AY21: 495 | AZ21: K5942:S5950 | BA21: 520 | BB21: K6242:S6250 | BC21: 545 | BD21: K6542:S6550 | BE21: 570 | BF21: K6842:S6850 | BG21: 595 | BH21: K7142:S7150 | BI21: 620 | BJ21: K7442:S7450 | BK21: 645 | BL21: K7742:S7750 | BM21: 670 | BN21: K8042:S8050 | BO21: 695 | BP21: K8342:S8350 | BQ21: 720 | BR21: K8642:S8650 | BS21: 745 | BT21: K8942:S8950 | BU21: 770 | BV21: K9242:S9250 | BW21: 795 | BX21: K9542:S9550 | BY21: 820 | BZ21: K9842:S9850 | CA21: 845 | CB21: K10142:S10150 | CC21: 870 | CD21: K10442:S10450 | CE21: 895 | CF21: K10742:S10750 | CG21: 920 | CH21: K11042:S11050 | CI21: 945 | CJ21: K11342:S11350 | CK21: 970 | CL21: K11642:S11650 | CM21: 995 | CN21: K11942:S11950 | CO21: 1020 | CP21: K12242:S12250 | CQ21: 1045 | CR21: K12542:S12550 | CS21: 1070 | CT21: K12842:S12850 | CU21: 1095 | CV21: K13142:S13150 | CW21: 1120 | CX21: K13442:S13450 | CY21: 1145 | CZ21: K13742:S13750 | DA21: 1170 | DB21: K14042:S14050 | DC21: 1195 | DD21: K14342:S14350 | DE21: 1220 | DF21: K14642:S14650 | DG21: 1245 | DH21: K14942:S14950 | DI21: 1270 | DJ21: K15242:S15250 | DK21: 1295 | DL21: K15542:S15550 | DM21: 1320 | DN21: K15842:S15850 | DO21: 1345 | DP21: K16142:S16150 | DQ21: 1370 | DR21: K16442:S16450 | DS21: 1395 | DT21: K16742:S16750 | DU21: 1420 | DV21: K17042:S17050 | DW21: 1445 | DX21: K17342:S17350 | DY21: 1470 | DZ21: K17642:S17650 | EA21: 1495 | EB21: K17942:S17950 | EC21: 1520 | ED21: K18242:S18250 | EE21: 1545 | EF21: K18542:S18550 | EG21: 1570 | EH21: K18842:S18850 | EI21: 1595 | EJ21: K19142:S19150 | EK21: 1620 | EL21: K19442:S19450 | EM21: 1645 | EN21: K19742:S19750 | EO21: 1670 | EP21: K20042:S20050 | EQ21: 1695 | ER21: K20342:S20350 | ES21: 1720 | ET21: K20642:S20650 | EU21: 1745 | EV21: K20942:S20950 | EW21: 1770 | EX21: K21242:S21250 | EY21: 1795 | FA21: 1820
M22: 21 | N22: K254:S262 | O22: 46 | P22: K554:S562 | Q22: 71 | R22: K854:S862 | S22: 96 | T22: K1154:S1162 | U22: 121 | V22: K1454:S1462 | W22: =U22+25 -> 146 | X22: K1754:S1762 | Y22: =W22+25 -> 171 | Z22: K2054:S2062 | AA22: 196 | AB22: K2354:S2362 | AC22: 221 | AD22: K2654:S2662 | AE22: 246 | AF22: K2954:S2962 | AG22: 271 | AH22: K3254:S3262 | AI22: 296 | AJ22: K3554:S3562 | AK22: 321 | AL22: K3854:S3862 | AM22: 346 | AN22: K4154:S4162 | AO22: 371 | AP22: K4454:S4462 | AQ22: 396 | AR22: K4754:S4762 | AS22: 421 | AT22: K5054:S5062 | AU22: 446 | AV22: K5354:S5362 | AW22: 471 | AX22: K5654:S5662 | AY22: 496 | AZ22: K5954:S5962 | BA22: 521 | BB22: K6254:S6262 | BC22: 546 | BD22: K6554:S6562 | BE22: 571 | BF22: K6854:S6862 | BG22: 596 | BH22: K7154:S7162 | BI22: 621 | BJ22: K7454:S7462 | BK22: 646 | BL22: K7754:S7762 | BM22: 671 | BN22: K8054:S8062 | BO22: 696 | BP22: K8354:S8362 | BQ22: 721 | BR22: K8654:S8662 | BS22: 746 | BT22: K8954:S8962 | BU22: 771 | BV22: K9254:S9262 | BW22: 796 | BX22: K9554:S9562 | BY22: 821 | BZ22: K9854:S9862 | CA22: 846 | CB22: K10154:S10162 | CC22: 871 | CD22: K10454:S10462 | CE22: 896 | CF22: K10754:S10762 | CG22: 921 | CH22: K11054:S11062 | CI22: 946 | CJ22: K11354:S11362 | CK22: 971 | CL22: K11654:S11662 | CM22: 996 | CN22: K11954:S11962 | CO22: 1021 | CP22: K12254:S12262 | CQ22: 1046 | CR22: K12554:S12562 | CS22: 1071 | CT22: K12854:S12862 | CU22: 1096 | CV22: K13154:S13162 | CW22: 1121 | CX22: K13454:S13462 | CY22: 1146 | CZ22: K13754:S13762 | DA22: 1171 | DB22: K14054:S14062 | DC22: 1196 | DD22: K14354:S14362 | DE22: 1221 | DF22: K14654:S14662 | DG22: 1246 | DH22: K14954:S14962 | DI22: 1271 | DJ22: K15254:S15262 | DK22: 1296 | DL22: K15554:S15562 | DM22: 1321 | DN22: K15854:S15862 | DO22: 1346 | DP22: K16154:S16162 | DQ22: 1371 | DR22: K16454:S16462 | DS22: 1396 | DT22: K16754:S16762 | DU22: 1421 | DV22: K17054:S17062 | DW22: 1446 | DX22: K17354:S17362 | DY22: 1471 | DZ22: K17654:S17662 | EA22: 1496 | EB22: K17954:S17962 | EC22: 1521 | ED22: K18254:S18262 | EE22: 1546 | EF22: K18554:S18562 | EG22: 1571 | EH22: K18854:S18862 | EI22: 1596 | EJ22: K19154:S19162 | EK22: 1621 | EL22: K19454:S19462 | EM22: 1646 | EN22: K19754:S19762 | EO22: 1671 | EP22: K20054:S20062 | EQ22: 1696 | ER22: K20354:S20362 | ES22: 1721 | ET22: K20654:S20662 | EU22: 1746 | EV22: K20954:S20962 | EW22: 1771 | EX22: K21254:S21262 | EY22: 1796 | FA22: 1821
M23: 22 | N23: K266:S274 | O23: 47 | P23: K566:S574 | Q23: 72 | R23: K866:S874 | S23: 97 | T23: K1166:S1174 | U23: 122 | V23: K1466:S1474 | W23: 147 | X23: K1766:S1774 | Y23: 172 | Z23: K2066:S2074 | AA23: 197 | AB23: K2366:S2374 | AC23: 222 | AD23: K2666:S2674 | AE23: 247 | AF23: K2966:S2974 | AG23: 272 | AH23: K3266:S3274 | AI23: 297 | AJ23: K3566:S3574 | AK23: 322 | AL23: K3866:S3874 | AM23: 347 | AN23: K4166:S4174 | AO23: 372 | AP23: K4466:S4474 | AQ23: 397 | AR23: K4766:S4774 | AS23: 422 | AT23: K5066:S5074 | AU23: 447 | AV23: K5366:S5374 | AW23: 472 | AX23: K5666:S5674 | AY23: 497 | AZ23: K5966:S5974 | BA23: 522 | BB23: K6266:S6274 | BC23: 547 | BD23: K6566:S6574 | BE23: 572 | BF23: K6866:S6874 | BG23: 597 | BH23: K7166:S7174 | BI23: 622 | BJ23: K7466:S7474 | BK23: 647 | BL23: K7766:S7774 | BM23: 672 | BN23: K8066:S8074 | BO23: 697 | BP23: K8366:S8374 | BQ23: 722 | BR23: K8666:S8674 | BS23: 747 | BT23: K8966:S8974 | BU23: 772 | BV23: K9266:S9274 | BW23: 797 | BX23: K9566:S9574 | BY23: 822 | BZ23: K9866:S9874 | CA23: 847 | CB23: K10166:S10174 | CC23: 872 | CD23: K10466:S10474 | CE23: 897 | CF23: K10766:S10774 | CG23: 922 | CH23: K11066:S11074 | CI23: 947 | CJ23: K11366:S11374 | CK23: 972 | CL23: K11666:S11674 | CM23: 997 | CN23: K11966:S11974 | CO23: 1022 | CP23: K12266:S12274 | CQ23: 1047 | CR23: K12566:S12574 | CS23: 1072 | CT23: K12866:S12874 | CU23: 1097 | CV23: K13166:S13174 | CW23: 1122 | CX23: K13466:S13474 | CY23: 1147 | CZ23: K13766:S13774 | DA23: 1172 | DB23: K14066:S14074 | DC23: 1197 | DD23: K14366:S14374 | DE23: 1222 | DF23: K14666:S14674 | DG23: 1247 | DH23: K14966:S14974 | DI23: 1272 | DJ23: K15266:S15274 | DK23: 1297 | DL23: K15566:S15574 | DM23: 1322 | DN23: K15866:S15874 | DO23: 1347 | DP23: K16166:S16174 | DQ23: 1372 | DR23: K16466:S16474 | DS23: 1397 | DT23: K16766:S16774 | DU23: 1422 | DV23: K17066:S17074 | DW23: 1447 | DX23: K17366:S17374 | DY23: 1472 | DZ23: K17666:S17674 | EA23: 1497 | EB23: K17966:S17974 | EC23: 1522 | ED23: K18266:S18274 | EE23: 1547 | EF23: K18566:S18574 | EG23: 1572 | EH23: K18866:S18874 | EI23: 1597 | EJ23: K19166:S19174 | EK23: 1622 | EL23: K19466:S19474 | EM23: 1647 | EN23: K19766:S19774 | EO23: 1672 | EP23: K20066:S20074 | EQ23: 1697 | ER23: K20366:S20374 | ES23: 1722 | ET23: K20666:S20674 | EU23: 1747 | EV23: K20966:S20974 | EW23: 1772 | EX23: K21266:S21274 | EY23: 1797 | FA23: 1822
M24: 23 | N24: K278:S286 | O24: 48 | P24: K578:S586 | Q24: 73 | R24: K878:S886 | S24: 98 | T24: K1178:S1186 | U24: 123 | V24: K1478:S1486 | W24: =U24+25 -> 148 | X24: K1778:S1786 | Y24: =W24+25 -> 173 | Z24: K2078:S2086 | AA24: 198 | AB24: K2378:S2386 | AC24: 223 | AD24: K2678:S2686 | AE24: 248 | AF24: K2978:S2986 | AG24: 273 | AH24: K3278:S3286 | AI24: 298 | AJ24: K3578:S3586 | AK24: 323 | AL24: K3878:S3886 | AM24: 348 | AN24: K4178:S4186 | AO24: 373 | AP24: K4478:S4486 | AQ24: 398 | AR24: K4778:S4786 | AS24: 423 | AT24: K5078:S5086 | AU24: 448 | AV24: K5378:S5386 | AW24: 473 | AX24: K5678:S5686 | AY24: 498 | AZ24: K5978:S5986 | BA24: 523 | BB24: K6278:S6286 | BC24: 548 | BD24: K6578:S6586 | BE24: 573 | BF24: K6878:S6886 | BG24: 598 | BH24: K7178:S7186 | BI24: 623 | BJ24: K7478:S7486 | BK24: 648 | BL24: K7778:S7786 | BM24: 673 | BN24: K8078:S8086 | BO24: 698 | BP24: K8378:S8386 | BQ24: 723 | BR24: K8678:S8686 | BS24: 748 | BT24: K8978:S8986 | BU24: 773 | BV24: K9278:S9286 | BW24: 798 | BX24: K9578:S9586 | BY24: 823 | BZ24: K9878:S9886 | CA24: 848 | CB24: K10178:S10186 | CC24: 873 | CD24: K10478:S10486 | CE24: 898 | CF24: K10778:S10786 | CG24: 923 | CH24: K11078:S11086 | CI24: 948 | CJ24: K11378:S11386 | CK24: 973 | CL24: K11678:S11686 | CM24: 998 | CN24: K11978:S11986 | CO24: 1023 | CP24: K12278:S12286 | CQ24: 1048 | CR24: K12578:S12586 | CS24: 1073 | CT24: K12878:S12886 | CU24: 1098 | CV24: K13178:S13186 | CW24: 1123 | CX24: K13478:S13486 | CY24: 1148 | CZ24: K13778:S13786 | DA24: 1173 | DB24: K14078:S14086 | DC24: 1198 | DD24: K14378:S14386 | DE24: 1223 | DF24: K14678:S14686 | DG24: 1248 | DH24: K14978:S14986 | DI24: 1273 | DJ24: K15278:S15286 | DK24: 1298 | DL24: K15578:S15586 | DM24: 1323 | DN24: K15878:S15886 | DO24: 1348 | DP24: K16178:S16186 | DQ24: 1373 | DR24: K16478:S16486 | DS24: 1398 | DT24: K16778:S16786 | DU24: 1423 | DV24: K17078:S17086 | DW24: 1448 | DX24: K17378:S17386 | DY24: 1473 | DZ24: K17678:S17686 | EA24: 1498 | EB24: K17978:S17986 | EC24: 1523 | ED24: K18278:S18286 | EE24: 1548 | EF24: K18578:S18586 | EG24: 1573 | EH24: K18878:S18886 | EI24: 1598 | EJ24: K19178:S19186 | EK24: 1623 | EL24: K19478:S19486 | EM24: 1648 | EN24: K19778:S19786 | EO24: 1673 | EP24: K20078:S20086 | EQ24: 1698 | ER24: K20378:S20386 | ES24: 1723 | ET24: K20678:S20686 | EU24: 1748 | EV24: K20978:S20986 | EW24: 1773 | EX24: K21278:S21286 | EY24: 1798 | FA24: 1823
M25: 24 | N25: K290:S298 | O25: 49 | P25: K590:S598 | Q25: 74 | R25: K890:S898 | S25: 99 | T25: K1190:S1198 | U25: 124 | V25: K1490:S1498 | W25: 149 | X25: K1790:S1798 | Y25: 174 | Z25: K2090:S2098 | AA25: 199 | AB25: K2390:S2398 | AC25: 224 | AD25: K2690:S2698 | AE25: 249 | AF25: K2990:S2998 | AG25: 274 | AH25: K3290:S3298 | AI25: 299 | AJ25: K3590:S3598 | AK25: 324 | AL25: K3890:S3898 | AM25: 349 | AN25: K4190:S4198 | AO25: 374 | AP25: K4490:S4498 | AQ25: 399 | AR25: K4790:S4798 | AS25: 424 | AT25: K5090:S5098 | AU25: 449 | AV25: K5390:S5398 | AW25: 474 | AX25: K5690:S5698 | AY25: 499 | AZ25: K5990:S5998 | BA25: 524 | BB25: K6290:S6298 | BC25: 549 | BD25: K6590:S6598 | BE25: 574 | BF25: K6890:S6898 | BG25: 599 | BH25: K7190:S7198 | BI25: 624 | BJ25: K7490:S7498 | BK25: 649 | BL25: K7790:S7798 | BM25: 674 | BN25: K8090:S8098 | BO25: 699 | BP25: K8390:S8398 | BQ25: 724 | BR25: K8690:S8698 | BS25: 749 | BT25: K8990:S8998 | BU25: 774 | BV25: K9290:S9298 | BW25: 799 | BX25: K9590:S9598 | BY25: 824 | BZ25: K9890:S9898 | CA25: 849 | CB25: K10190:S10198 | CC25: 874 | CD25: K10490:S10498 | CE25: 899 | CF25: K10790:S10798 | CG25: 924 | CH25: K11090:S11098 | CI25: 949 | CJ25: K11390:S11398 | CK25: 974 | CL25: K11690:S11698 | CM25: 999 | CN25: K11990:S11998 | CO25: 1024 | CP25: K12290:S12298 | CQ25: 1049 | CR25: K12590:S12598 | CS25: 1074 | CT25: K12890:S12898 | CU25: 1099 | CV25: K13190:S13198 | CW25: 1124 | CX25: K13490:S13498 | CY25: 1149 | CZ25: K13790:S13798 | DA25: 1174 | DB25: K14090:S14098 | DC25: 1199 | DD25: K14390:S14398 | DE25: 1224 | DF25: K14690:S14698 | DG25: 1249 | DH25: K14990:S14998 | DI25: 1274 | DJ25: K15290:S15298 | DK25: 1299 | DL25: K15590:S15598 | DM25: 1324 | DN25: K15890:S15898 | DO25: 1349 | DP25: K16190:S16198 | DQ25: 1374 | DR25: K16490:S16498 | DS25: 1399 | DT25: K16790:S16798 | DU25: 1424 | DV25: K17090:S17098 | DW25: 1449 | DX25: K17390:S17398 | DY25: 1474 | DZ25: K17690:S17698 | EA25: 1499 | EB25: K17990:S17998 | EC25: 1524 | ED25: K18290:S18298 | EE25: 1549 | EF25: K18590:S18598 | EG25: 1574 | EH25: K18890:S18898 | EI25: 1599 | EJ25: K19190:S19198 | EK25: 1624 | EL25: K19490:S19498 | EM25: 1649 | EN25: K19790:S19798 | EO25: 1674 | EP25: K20090:S20098 | EQ25: 1699 | ER25: K20390:S20398 | ES25: 1724 | ET25: K20690:S20698 | EU25: 1749 | EV25: K20990:S20998 | EW25: 1774 | EX25: K21290:S21298 | EY25: 1799 | FA25: 1824
M26: 25 | N26: K302:S310 | O26: 50 | P26: K602:S610 | Q26: 75 | R26: K902:S910 | S26: 100 | T26: K1202:S1210 | U26: 125 | V26: K1502:S1510 | W26: =U26+25 -> 150 | X26: K1802:S1810 | Y26: =W26+25 -> 175 | Z26: K2102:S2110 | AA26: 200 | AB26: K2402:S2410 | AC26: 225 | AD26: K2702:S2710 | AE26: 250 | AF26: K3002:S3010 | AG26: 275 | AH26: K3302:S3310 | AI26: 300 | AJ26: K3602:S3610 | AK26: 325 | AL26: K3902:S3910 | AM26: 350 | AN26: K4202:S4210 | AO26: 375 | AP26: K4502:S4510 | AQ26: 400 | AR26: K4802:S4810 | AS26: 425 | AT26: K5102:S5110 | AU26: 450 | AV26: K5402:S5410 | AW26: 475 | AX26: K5702:S5710 | AY26: 500 | AZ26: K6002:S6010 | BA26: 525 | BB26: K6302:S6310 | BC26: 550 | BD26: K6602:S6610 | BE26: 575 | BF26: K6902:S6910 | BG26: 600 | BH26: K7202:S7210 | BI26: 625 | BJ26: K7502:S7510 | BK26: 650 | BL26: K7802:S7810 | BM26: 675 | BN26: K8102:S8110 | BO26: 700 | BP26: K8402:S8410 | BQ26: 725 | BR26: K8702:S8710 | BS26: 750 | BT26: K9002:S9010 | BU26: 775 | BV26: K9302:S9310 | BW26: 800 | BX26: K9602:S9610 | BY26: 825 | BZ26: K9902:S9910 | CA26: 850 | CB26: K10202:S10210 | CC26: 875 | CD26: K10502:S10510 | CE26: 900 | CF26: K10802:S10810 | CG26: 925 | CH26: K11102:S11110 | CI26: 950 | CJ26: K11402:S11410 | CK26: 975 | CL26: K11702:S11710 | CM26: 1000 | CN26: K12002:S12010 | CO26: 1025 | CP26: K12302:S12310 | CQ26: 1050 | CR26: K12602:S12610 | CS26: 1075 | CT26: K12902:S12910 | CU26: 1100 | CV26: K13202:S13210 | CW26: 1125 | CX26: K13502:S13510 | CY26: 1150 | CZ26: K13802:S13810 | DA26: 1175 | DB26: K14102:S14110 | DC26: 1200 | DD26: K14402:S14410 | DE26: 1225 | DF26: K14702:S14710 | DG26: 1250 | DH26: K15002:S15010 | DI26: 1275 | DJ26: K15302:S15310 | DK26: 1300 | DL26: K15602:S15610 | DM26: 1325 | DN26: K15902:S15910 | DO26: 1350 | DP26: K16202:S16210 | DQ26: 1375 | DR26: K16502:S16510 | DS26: 1400 | DT26: K16802:S16810 | DU26: 1425 | DV26: K17102:S17110 | DW26: 1450 | DX26: K17402:S17410 | DY26: 1475 | DZ26: K17702:S17710 | EA26: 1500 | EB26: K18002:S18010 | EC26: 1525 | ED26: K18302:S18310 | EE26: 1550 | EF26: K18602:S18610 | EG26: 1575 | EH26: K18902:S18910 | EI26: 1600 | EJ26: K19202:S19210 | EK26: 1625 | EL26: K19502:S19510 | EM26: 1650 | EN26: K19802:S19810 | EO26: 1675 | EP26: K20102:S20110 | EQ26: 1700 | ER26: K20402:S20410 | ES26: 1725 | ET26: K20702:S20710 | EU26: 1750 | EV26: K21002:S21010 | EW26: 1775 | EX26: K21302:S21310 | EY26: 1800 | FA26: 1825

Sheet Opgave
B1: Voorbeeld:
A3: A | F3: G | I3: E
C4: D | F4: H
A5: H | B5: G | D5: I | E5: C | H5: B
D6: H | E6: E | F6: B | G6: D
B7: B | C7: A | E7: G
H8: I | I8: G
E10: F | F10: A | G10: I | I10: H
B11: H | C11: G | I11: D
B12: Opgave: | D12: 1
C14: H | E14: C | G14: I
C15: E | D15: B | E15: I | G15: A | H15: D
B16: D | E16: A | G16: B
A17: G | C17: B | D17: D
A19: D | B19: I | F19: E | G19: C
C20: I | I20: H
A21: B | B21: H
F22: A | G22: D | H22: I | I22: F
B24: Opgave: | D24: 2
C26: F | E26: B | F26: I | G26: C
B27: C | C27: D | D27: G | F27: F | G27: B
E28: H
A29: A | G29: I
F30: D
B31: E | E31: A | H31: C
A32: G | G32: D | I32: E
A33: B | H33: F
B34: D | C34: E | E34: C | G34: G | H34: H | I34: B
B36: Opgave: | D36: 3
A38: I | B38: G | D38: E | F38: F
A39: H | B39: D | C39: E | G39: F
B40: F | D40: A | I40: G
B41: H | G41: G
F42: I | G42: E | H42: B
B43: C | H43: D | I43: H
B44: I | D44: F | F44: E | G44: B
E45: D
C46: D | E46: I | F46: H | H46: G | I46: F
B48: Opgave: | D48: 4
A50: H | B50: E | F50: F | I50: B
A51: F | C51: A | E51: D
D52: H | G52: C
A53: I | D53: B | H53: E
D54: A | G54: D
B55: B | D55: E | E55: H | G55: A | I55: C
B56: D | G56: F
B57: H | D57: F | H57: I
C58: B | H58: C | I58: H
B60: Opgave: | D60: 5
F62: H
B63: F | E63: B
B64: H | C64: A | H64: C | I64: E
B65: E | G65: A
A66: F | C66: G | E66: H
B67: I | C67: D | E67: G | G67: F
B68: A | F68: D | I68: G
B69: G | F69: E | H69: H | I69: F
C70: C | F70: I | I70: A
B72: Opgave: | D72: 6
A74: A | D74: D | G74: E | I74: B
D75: I | H75: H | I75: C
F76: C
B77: F | E77: H | H77: E
G78: C | I78: I
D79: A | F79: G | G79: B | H79: D
B80: D | C80: A | D80: B
A81: G | D81: H | F81: D
A82: F | C82: B | D82: G | I82: D
B84: Opgave: | D84: 7
C86: B | H86: G | I86: A
C87: A | D87: I | F87: B | G87: D
B88: C | E88: H | I88: B
B89: F | D89: E | F89: G | H89: I
A90: E | D90: F | G90: B | H90: D
C91: C | I91: F
E92: G | F92: H | G92: A
D94: C | E94: F | F94: D | G94: H
B96: Opgave: | D96: 8
A99: G | B99: A | C99: B | G99: F
B100: E | D100: D | I100: G
D101: A | E101: D | F101: F | G101: H | I101: C
B102: D | C102: H | E102: G | G102: I
C103: C | G103: G | H103: A
E104: A
C105: I | F105: C | H105: E
B106: B | D106: G | E106: I
B108: Opgave: | D108: 9
A110: E | D110: F | I110: C
D111: D | F111: C | I111: A
B112: A | C112: H | D112: B | E112: I
B113: C | C113: F | E113: A
A114: G | D114: E | F114: I
G115: I
A116: D | C116: I | E116: G | H116: F
A117: H | B117: E | H117: C
G118: H | H118: B
B120: Opgave: | D120: 10
C122: H | E122: A | H122: B
D123: G | F123: F
A124: F | B124: I | F124: B
B125: A | G125: C | H125: D | I125: G
C126: E | D126: D | F126: H
D127: F | E127: G
C128: A | G128: I
C129: I | E129: E | F129: D | I129: H
A130: D | D130: H | F130: I | G130: F | H130: A
B132: Opgave: | D132: 11
A134: F | D134: C | F134: D | G134: H
F135: G
B136: H | C136: C | F136: F
A137: B | E137: G | F137: E | I137: F
C138: I | G138: D
E139: F | F139: B | H139: A
A140: E | H140: G | I140: H
B141: G | D141: H | E141: B | H141: F
B142: A | G142: I | I142: D
B144: Opgave: | D144: 12
C146: A | E146: B
B147: F | F147: C
G148: E | H148: A | I148: C
F149: A
A150: C | B150: H | C150: I | E150: G | H150: B | I150: A
C151: F | D151: D | E151: C
A152: B | E152: E | F152: G | G152: H | H152: F
G153: G | H153: I
A154: I | E154: H | F154: F
B156: Opgave: | D156: 13
C158: C
D159: C | E159: B | H159: F
A160: F | B160: D | C160: B | E160: I
A161: A | C161: E | E161: F | I161: B
D162: H | G162: C
E163: E | F163: G | G163: A | I163: F
A164: I | F164: D | I164: C
D165: G | I165: A
B166: E | E166: C | H166: I
B168: Opgave: | D168: 14
A170: C | D170: I | E170: B | G170: F | H170: E
A171: H | C171: F | D171: E
A172: D | B172: I | E172: F | G172: A
B174: G | D174: D | E174: E | H174: I
D175: C | F175: H | G175: G
A176: B | B176: D | G176: C | H176: A
A177: F | E177: I
D178: A | H178: H
B180: Opgave: | D180: 15
A182: I | B182: F | F182: E | H182: A | I182: C
B183: A | C183: E | F183: F | G183: G
C184: G | I184: D
B185: H | D185: F | E185: A | F185: C
F186: I | H186: H
D187: G | H187: C | I187: F
E188: C
D189: B | F189: A | G189: I | I189: G
A190: D | C190: F
B192: Opgave: | D192: 16
A194: A | C194: G | E194: F | F194: I | I194: B
C195: C | D195: B
A196: E | B196: F | D196: H | F196: A | H196: G
B197: B | F197: H | G197: E
A198: C | G198: H | H198: F | I198: A
I199: I
A200: G | H200: H | I200: E
A202: B | D202: D | E202: I | F202: G
B204: Opgave: | D204: 17
A206: G | D206: A | F206: F
C207: B | G207: A
C208: A | F208: E | H208: B
A209: D | C209: G | D209: C | F209: B
G210: I | I210: G
D211: I | F211: H
A212: B | C212: E | F212: I | G212: D
I213: F
A214: A | C214: H | F214: D | G214: B | I214: E
B216: Opgave: | D216: 18
D219: I | E219: C | H219: D
A220: I | C220: C | D220: B | E220: H | F220: G
A221: G | H221: I
I222: F
B223: H | D223: F | E223: D | G223: C | H223: G
C224: H | I224: B
C225: I | D225: C | E225: B | G225: F
C226: F | E226: E | F226: A | G226: D
B228: Opgave: | D228: 19
F230: E | H230: D
B231: C | G231: I
D232: C | G232: G
A233: D | B233: E | C233: B | E233: G | G233: H
B234: A | D234: F | G234: D | I234: E
A235: C
A236: A | B236: G | F236: I | I236: H
A237: I | E237: C | F237: B
A238: B | F238: D | H238: F
B240: Opgave: | D240: 20
C242: A | F242: F | H242: I
A243: B | B243: E
E244: A | F244: D | I244: G
A245: E | C245: D | D245: B
C246: H | E246: F
E247: I | G247: H | I247: B
... 3501 more rows

Sheet Oplossingen
B1: Voorbeeld:
A3: A | B3: C | C3: I | D3: F | E3: B | F3: G | G3: H | H3: D | I3: E
A4: B | B4: F | C4: D | D4: E | E4: A | F4: H | G4: C | H4: G | I4: I
A5: H | B5: G | C5: E | D5: I | E5: C | F5: D | G5: F | H5: B | I5: A
A6: G | B6: I | C6: F | D6: H | E6: E | F6: B | G6: D | H6: A | I6: C
A7: D | B7: B | C7: A | D7: C | E7: G | F7: I | G7: E | H7: H | I7: F
A8: C | B8: E | C8: H | D8: A | E8: D | F8: F | G8: B | H8: I | I8: G
A9: I | B9: A | C9: C | D9: D | E9: H | F9: E | G9: G | H9: F | I9: B
A10: E | B10: D | C10: B | D10: G | E10: F | F10: A | G10: I | H10: C | I10: H
A11: F | B11: H | C11: G | D11: B | E11: I | F11: C | G11: A | H11: E | I11: D
B13: Opgave: | D13: 1
A15: A | B15: B | C15: H | D15: G | E15: C | F15: D | G15: I | H15: F | I15: E
A16: C | B16: F | C16: E | D16: B | E16: I | F16: H | G16: A | H16: D | I16: G
A17: I | B17: D | C17: G | D17: E | E17: A | F17: F | G17: B | H17: H | I17: C
A18: G | B18: E | C18: B | D18: D | E18: F | F18: C | G18: H | H18: A | I18: I
A19: H | B19: C | C19: A | D19: I | E19: G | F19: B | G19: F | H19: E | I19: D
A20: D | B20: I | C20: F | D20: A | E20: H | F20: E | G20: C | H20: G | I20: B
A21: F | B21: A | C21: I | D21: C | E21: D | F21: G | G21: E | H21: B | I21: H
A22: B | B22: H | C22: D | D22: F | E22: E | F22: I | G22: G | H22: C | I22: A
A23: E | B23: G | C23: C | D23: H | E23: B | F23: A | G23: D | H23: I | I23: F
B25: Opgave: | D25: 2
A27: H | B27: G | C27: F | D27: A | E27: B | F27: I | G27: C | H27: E | I27: D
A28: I | B28: C | C28: D | D28: G | E28: E | F28: F | G28: B | H28: A | I28: H
A29: E | B29: B | C29: A | D29: D | E29: H | F29: C | G29: F | H29: G | I29: I
A30: A | B30: H | C30: B | D30: C | E30: G | F30: E | G30: I | H30: D | I30: F
A31: C | B31: F | C31: G | D31: H | E31: I | F31: D | G31: E | H31: B | I31: A
A32: D | B32: E | C32: I | D32: F | E32: A | F32: B | G32: H | H32: C | I32: G
A33: G | B33: A | C33: C | D33: B | E33: F | F33: H | G33: D | H33: I | I33: E
A34: B | B34: I | C34: H | D34: E | E34: D | F34: G | G34: A | H34: F | I34: C
A35: F | B35: D | C35: E | D35: I | E35: C | F35: A | G35: G | H35: H | I35: B
B37: Opgave: | D37: 3
A39: I | B39: G | C39: A | D39: E | E39: C | F39: F | G39: D | H39: H | I39: B
A40: H | B40: D | C40: E | D40: I | E40: B | F40: G | G40: F | H40: C | I40: A
A41: B | B41: F | C41: C | D41: A | E41: H | F41: D | G41: I | H41: E | I41: G
A42: E | B42: H | C42: B | D42: D | E42: A | F42: C | G42: G | H42: F | I42: I
A43: D | B43: A | C43: G | D43: H | E43: F | F43: I | G43: E | H43: B | I43: C
A44: F | B44: C | C44: I | D44: G | E44: E | F44: B | G44: A | H44: D | I44: H
A45: C | B45: I | C45: H | D45: F | E45: G | F45: E | G45: B | H45: A | I45: D
A46: G | B46: B | C46: F | D46: C | E46: D | F46: A | G46: H | H46: I | I46: E
A47: A | B47: E | C47: D | D47: B | E47: I | F47: H | G47: C | H47: G | I47: F
B49: Opgave: | D49: 4
A51: H | B51: E | C51: G | D51: C | E51: A | F51: F | G51: I | H51: D | I51: B
A52: F | B52: C | C52: A | D52: I | E52: D | F52: B | G52: E | H52: H | I52: G
A53: B | B53: I | C53: D | D53: H | E53: E | F53: G | G53: C | H53: F | I53: A
A54: I | B54: A | C54: C | D54: B | E54: G | F54: D | G54: H | H54: E | I54: F
A55: E | B55: G | C55: H | D55: A | E55: F | F55: C | G55: D | H55: B | I55: I
A56: D | B56: B | C56: F | D56: E | E56: H | F56: I | G56: A | H56: G | I56: C
A57: C | B57: D | C57: I | D57: G | E57: B | F57: H | G57: F | H57: A | I57: E
A58: G | B58: H | C58: E | D58: F | E58: C | F58: A | G58: B | H58: I | I58: D
A59: A | B59: F | C59: B | D59: D | E59: I | F59: E | G59: G | H59: C | I59: H
B61: Opgave: | D61: 5
A63: C | B63: D | C63: B | D63: A | E63: E | F63: H | G63: G | H63: F | I63: I
A64: G | B64: F | C64: E | D64: I | E64: B | F64: C | G64: H | H64: A | I64: D
A65: I | B65: H | C65: A | D65: F | E65: D | F65: G | G65: B | H65: C | I65: E
A66: B | B66: E | C66: H | D66: D | E66: I | F66: F | G66: A | H66: G | I66: C
A67: F | B67: C | C67: G | D67: E | E67: H | F67: A | G67: D | H67: I | I67: B
A68: A | B68: I | C68: D | D68: C | E68: G | F68: B | G68: F | H68: E | I68: H
A69: E | B69: A | C69: F | D69: H | E69: C | F69: D | G69: I | H69: B | I69: G
A70: D | B70: G | C70: I | D70: B | E70: A | F70: E | G70: C | H70: H | I70: F
A71: H | B71: B | C71: C | D71: G | E71: F | F71: I | G71: E | H71: D | I71: A
B73: Opgave: | D73: 6
A75: A | B75: C | C75: F | D75: D | E75: G | F75: H | G75: E | H75: I | I75: B
A76: D | B76: G | C76: E | D76: I | E76: B | F76: A | G76: F | H76: H | I76: C
A77: I | B77: B | C77: H | D77: F | E77: E | F77: C | G77: D | H77: A | I77: G
A78: B | B78: F | C78: D | D78: C | E78: H | F78: I | G78: G | H78: E | I78: A
A79: H | B79: A | C79: G | D79: E | E79: D | F79: B | G79: C | H79: F | I79: I
A80: E | B80: I | C80: C | D80: A | E80: F | F80: G | G80: B | H80: D | I80: H
A81: C | B81: D | C81: A | D81: B | E81: I | F81: F | G81: H | H81: G | I81: E
A82: G | B82: E | C82: I | D82: H | E82: C | F82: D | G82: A | H82: B | I82: F
A83: F | B83: H | C83: B | D83: G | E83: A | F83: E | G83: I | H83: C | I83: D
B85: Opgave: | D85: 7
A87: H | B87: E | C87: B | D87: D | E87: C | F87: F | G87: I | H87: G | I87: A
A88: F | B88: G | C88: A | D88: I | E88: E | F88: B | G88: D | H88: H | I88: C
A89: D | B89: C | C89: I | D89: G | E89: H | F89: A | G89: F | H89: E | I89: B
A90: A | B90: F | C90: D | D90: E | E90: B | F90: G | G90: C | H90: I | I90: H
A91: E | B91: I | C91: H | D91: F | E91: A | F91: C | G91: B | H91: D | I91: G
A92: G | B92: B | C92: C | D92: H | E92: D | F92: I | G92: E | H92: A | I92: F
A93: C | B93: D | C93: E | D93: B | E93: G | F93: H | G93: A | H93: F | I93: I
A94: B | B94: H | C94: F | D94: A | E94: I | F94: E | G94: G | H94: C | I94: D
A95: I | B95: A | C95: G | D95: C | E95: F | F95: D | G95: H | H95: B | I95: E
B97: Opgave: | D97: 8
A99: H | B99: C | C99: D | D99: F | E99: B | F99: G | G99: E | H99: I | I99: A
A100: G | B100: A | C100: B | D100: E | E100: C | F100: I | G100: F | H100: D | I100: H
A101: I | B101: E | C101: F | D101: D | E101: H | F101: A | G101: B | H101: C | I101: G
A102: E | B102: I | C102: G | D102: A | E102: D | F102: F | G102: H | H102: B | I102: C
A103: A | B103: D | C103: H | D103: C | E103: G | F103: B | G103: I | H103: F | I103: E
A104: B | B104: F | C104: C | D104: I | E104: E | F104: H | G104: G | H104: A | I104: D
A105: F | B105: H | C105: E | D105: B | E105: A | F105: D | G105: C | H105: G | I105: I
A106: D | B106: G | C106: I | D106: H | E106: F | F106: C | G106: A | H106: E | I106: B
A107: C | B107: B | C107: A | D107: G | E107: I | F107: E | G107: D | H107: H | I107: F
B109: Opgave: | D109: 9
A111: E | B111: G | C111: D | D111: F | E111: H | F111: A | G111: B | H111: I | I111: C
A112: F | B112: I | C112: B | D112: D | E112: E | F112: C | G112: G | H112: H | I112: A
A113: C | B113: A | C113: H | D113: B | E113: I | F113: G | G113: F | H113: E | I113: D
A114: I | B114: C | C114: F | D114: H | E114: A | F114: D | G114: E | H114: G | I114: B
A115: G | B115: H | C115: A | D115: E | E115: B | F115: I | G115: C | H115: D | I115: F
A116: B | B116: D | C116: E | D116: G | E116: C | F116: F | G116: I | H116: A | I116: H
A117: D | B117: B | C117: I | D117: C | E117: G | F117: H | G117: A | H117: F | I117: E
A118: H | B118: E | C118: G | D118: A | E118: F | F118: B | G118: D | H118: C | I118: I
A119: A | B119: F | C119: C | D119: I | E119: D | F119: E | G119: H | H119: B | I119: G
B121: Opgave: | D121: 10
A123: E | B123: G | C123: H | D123: I | E123: A | F123: C | G123: D | H123: B | I123: F
A124: A | B124: C | C124: B | D124: G | E124: D | F124: F | G124: H | H124: I | I124: E
A125: F | B125: I | C125: D | D125: E | E125: H | F125: B | G125: G | H125: C | I125: A
A126: H | B126: A | C126: F | D126: B | E126: I | F126: E | G126: C | H126: D | I126: G
A127: G | B127: B | C127: E | D127: D | E127: C | F127: H | G127: A | H127: F | I127: I
A128: I | B128: D | C128: C | D128: F | E128: G | F128: A | G128: E | H128: H | I128: B
A129: B | B129: H | C129: A | D129: C | E129: F | F129: G | G129: I | H129: E | I129: D
A130: C | B130: F | C130: I | D130: A | E130: E | F130: D | G130: B | H130: G | I130: H
A131: D | B131: E | C131: G | D131: H | E131: B | F131: I | G131: F | H131: A | I131: C
B133: Opgave: | D133: 11
A135: F | B135: B | C135: G | D135: C | E135: A | F135: D | G135: H | H135: I | I135: E
A136: D | B136: I | C136: E | D136: B | E136: H | F136: G | G136: F | H136: C | I136: A
A137: A | B137: H | C137: C | D137: E | E137: I | F137: F | G137: B | H137: D | I137: G
A138: B | B138: D | C138: A | D138: I | E138: G | F138: E | G138: C | H138: H | I138: F
A139: G | B139: F | C139: I | D139: A | E139: C | F139: H | G139: D | H139: E | I139: B
A140: C | B140: E | C140: H | D140: D | E140: F | F140: B | G140: G | H140: A | I140: I
A141: E | B141: C | C141: B | D141: F | E141: D | F141: I | G141: A | H141: G | I141: H
A142: I | B142: G | C142: D | D142: H | E142: B | F142: A | G142: E | H142: F | I142: C
A143: H | B143: A | C143: F | D143: G | E143: E | F143: C | G143: I | H143: B | I143: D
B145: Opgave: | D145: 12
A147: H | B147: C | C147: A | D147: E | E147: B | F147: I | G147: F | H147: D | I147: G
A148: G | B148: F | C148: E | D148: A | E148: D | F148: C | G148: B | H148: H | I148: I
A149: D | B149: I | C149: B | D149: G | E149: F | F149: H | G149: E | H149: A | I149: C
A150: E | B150: B | C150: D | D150: H | E150: I | F150: A | G150: C | H150: G | I150: F
A151: C | B151: H | C151: I | D151: F | E151: G | F151: E | G151: D | H151: B | I151: A
A152: A | B152: G | C152: F | D152: D | E152: C | F152: B | G152: I | H152: E | I152: H
A153: B | B153: A | C153: C | D153: I | E153: E | F153: G | G153: H | H153: F | I153: D
A154: F | B154: E | C154: H | D154: C | E154: A | F154: D | G154: G | H154: I | I154: B
A155: I | B155: D | C155: G | D155: B | E155: H | F155: F | G155: A | H155: C | I155: E
B157: Opgave: | D157: 13
A159: H | B159: I | C159: C | D159: D | E159: G | F159: F | G159: B | H159: A | I159: E
A160: E | B160: A | C160: G | D160: C | E160: B | F160: H | G160: I | H160: F | I160: D
A161: F | B161: D | C161: B | D161: A | E161: I | F161: E | G161: H | H161: C | I161: G
A162: A | B162: H | C162: E | D162: I | E162: F | F162: C | G162: G | H162: D | I162: B
A163: B | B163: G | C163: F | D163: H | E163: D | F163: A | G163: C | H163: E | I163: I
A164: D | B164: C | C164: I | D164: B | E164: E | F164: G | G164: A | H164: H | I164: F
A165: I | B165: B | C165: H | D165: E | E165: A | F165: D | G165: F | H165: G | I165: C
A166: C | B166: F | C166: D | D166: G | E166: H | F166: I | G166: E | H166: B | I166: A
A167: G | B167: E | C167: A | D167: F | E167: C | F167: B | G167: D | H167: I | I167: H
B169: Opgave: | D169: 14
A171: C | B171: A | C171: G | D171: I | E171: B | F171: D | G171: F | H171: E | I171: H
A172: H | B172: B | C172: F | D172: E | E172: C | F172: A | G172: D | H172: G | I172: I
A173: D | B173: I | C173: E | D173: H | E173: F | F173: G | G173: A | H173: C | I173: B
A174: E | B174: C | C174: D | D174: B | E174: G | F174: I | G174: H | H174: F | I174: A
A175: A | B175: G | C175: H | D175: D | E175: E | F175: F | G175: B | H175: I | I175: C
A176: I | B176: F | C176: B | D176: C | E176: A | F176: H | G176: G | H176: D | I176: E
A177: B | B177: D | C177: I | D177: F | E177: H | F177: E | G177: C | H177: A | I177: G
A178: F | B178: H | C178: A | D178: G | E178: I | F178: C | G178: E | H178: B | I178: D
A179: G | B179: E | C179: C | D179: A | E179: D | F179: B | G179: I | H179: H | I179: F
B181: Opgave: | D181: 15
A183: I | B183: F | C183: D | D183: H | E183: G | F183: E | G183: B | H183: A | I183: C
A184: B | B184: A | C184: E | D184: C | E184: D | F184: F | G184: G | H184: I | I184: H
A185: H | B185: C | C185: G | D185: A | E185: I | F185: B | G185: F | H185: E | I185: D
A186: E | B186: H | C186: B | D186: F | E186: A | F186: C | G186: D | H186: G | I186: I
A187: F | B187: G | C187: C | D187: D | E187: E | F187: I | G187: A | H187: H | I187: B
A188: A | B188: D | C188: I | D188: G | E188: B | F188: H | G188: E | H188: C | I188: F
A189: G | B189: B | C189: A | D189: I | E189: C | F189: D | G189: H | H189: F | I189: E
A190: C | B190: E | C190: H | D190: B | E190: F | F190: A | G190: I | H190: D | I190: G
A191: D | B191: I | C191: F | D191: E | E191: H | F191: G | G191: C | H191: B | I191: A
B193: Opgave: | D193: 16
A195: A | B195: H | C195: G | D195: C | E195: F | F195: I | G195: D | H195: E | I195: B
A196: D | B196: I | C196: C | D196: B | E196: G | F196: E | G196: F | H196: A | I196: H
A197: E | B197: F | C197: B | D197: H | E197: D | F197: A | G197: I | H197: G | I197: C
A198: I | B198: B | C198: F | D198: A | E198: C | F198: H | G198: E | H198: D | I198: G
A199: C | B199: G | C199: E | D199: I | E199: B | F199: D | G199: H | H199: F | I199: A
A200: H | B200: A | C200: D | D200: G | E200: E | F200: F | G200: C | H200: B | I200: I
A201: G | B201: D | C201: I | D201: F | E201: A | F201: C | G201: B | H201: H | I201: E
A202: F | B202: C | C202: A | D202: E | E202: H | F202: B | G202: G | H202: I | I202: D
A203: B | B203: E | C203: H | D203: D | E203: I | F203: G | G203: A | H203: C | I203: F
B205: Opgave: | D205: 17
A207: G | B207: H | C207: D | D207: A | E207: B | F207: F | G207: C | H207: E | I207: I
A208: I | B208: E | C208: B | D208: G | E208: H | F208: C | G208: A | H208: F | I208: D
A209: F | B209: C | C209: A | D209: D | E209: I | F209: E | G209: G | H209: B | I209: H
A210: D | B210: I | C210: G | D210: C | E210: F | F210: B | G210: E | H210: H | I210: A
A211: H | B211: B | C211: F | D211: E | E211: D | F211: A | G211: I | H211: C | I211: G
A212: E | B212: A | C212: C | D212: I | E212: G | F212: H | G212: F | H212: D | I212: B
A213: B | B213: F | C213: E | D213: H | E213: A | F213: I | G213: D | H213: G | I213: C
A214: C | B214: D | C214: I | D214: B | E214: E | F214: G | G214: H | H214: A | I214: F
A215: A | B215: G | C215: H | D215: F | E215: C | F215: D | G215: B | H215: I | I215: E
B217: Opgave: | D217: 18
A219: H | B219: E | C219: G | D219: A | E219: F | F219: D | G219: I | H219: B | I219: C
A220: F | B220: B | C220: A | D220: I | E220: C | F220: E | G220: G | H220: D | I220: H
A221: I | B221: D | C221: C | D221: B | E221: H | F221: G | G221: E | H221: F | I221: A
A222: G | B222: F | C222: E | D222: H | E222: A | F222: C | G222: B | H222: I | I222: D
A223: C | B223: I | C223: D | D223: E | E223: G | F223: B | G223: H | H223: A | I223: F
A224: A | B224: H | C224: B | D224: F | E224: D | F224: I | G224: C | H224: G | I224: E
A225: E | B225: G | C225: H | D225: D | E225: I | F225: F | G225: A | H225: C | I225: B
A226: D | B226: A | C226: I | D226: C | E226: B | F226: H | G226: F | H226: E | I226: G
A227: B | B227: C | C227: F | D227: G | E227: E | F227: A | G227: D | H227: H | I227: I
B229: Opgave: | D229: 19
A231: G | B231: B | C231: I | D231: A | E231: H | F231: E | G231: F | H231: D | I231: C
A232: F | B232: C | C232: H | D232: B | E232: D | F232: G | G232: I | H232: E | I232: A
A233: E | B233: D | C233: A | D233: C | E233: I | F233: F | G233: G | H233: H | I233: B
A234: D | B234: E | C234: B | D234: I | E234: G | F234: A | G234: H | H234: C | I234: F
A235: H | B235: A | C235: G | D235: F | E235: B | F235: C | G235: D | H235: I | I235: E
A236: C | B236: I | C236: F | D236: D | E236: E | F236: H | G236: B | H236: A | I236: G
A237: A | B237: G | C237: D | D237: E | E237: F | F237: I | G237: C | H237: B | I237: H
A238: I | B238: F | C238: E | D238: H | E238: C | F238: B | G238: A | H238: G | I238: D
A239: B | B239: H | C239: C | D239: G | E239: A | F239: D | G239: E | H239: F | I239: I
... 3552 more rows
